{"text_format":"1","workbook":"xlsx","n_sheets":2,"sheets":["RELAÇÃO GERAL","Planilha1"],"not_rendered":{"charts":0,"images":1,"macros":1,"external_links":0,"defined_names":2,"comments":0,"pivot_tables":0},"unopened":[],"bounds":{"document_bytes":16777216,"sheet_cells":100000,"rows_first":2000,"rows_last":500,"rows_between":2000,"halvings":0,"cell_chars":16384,"cell_head_chars":4096},"cells_cut":0,"cells_raw":0,"read":"whole","date_system":"1900"}

{"sheet":"RELAÇÃO GERAL","index":0,"n_rows":384,"n_cols":11,"rows_kept":384,"cut":false,"hidden":false,"merged":[[0,1,7,10]]}
[null,"EMPRESA BRASILEIRA DE HEMODERIVADOS E BIOTECNOLOGIA - HEMOBRÁS\nRELAÇÃO DE EMPREGADOS(AS)\n(MÊS DE REFERÊNCIA: 01/2024)"]
[]
[]
[]
[]
[]
[]
[]
["NÚMERO DE IDENTIFICAÇÃO FUNCIONAL","NOME COMPLETO","CPF","CARGO","FUNÇÃO","LOTAÇÃO","REGIME JURÍDICO","JORNADA DE TRABALHO","ATO DE ADMISSÃO","DATA DE ADMISSÃO","ÓRGÃO DE ORIGEM"]
[224,"ADINAEL LAURINDO DE SOUZA",{"$f":"\"***\"&MID(Planilha1!D2,4,9)&\"**\"","v":"***.989.144-**"},"TÉCNICO IND. E DE GESTÃO CORP. - REFRIGERAÇÃO",null,"HEMOBRÁS - FILIAL UNID. FABRIL (GOIANA)","CELETISTA","40 HORAS SEMANAIS","CONCURSO PÚBLICO","2014-02-21"]
[355,"ADRIANO MARTINS PEREIRA",{"$f":"\"***\"&MID(Planilha1!D3,4,9)&\"**\"","v":"***.611.456-**"},"ANALISTA ADM. DE ASSUNTOS CORP. - LOGÍSTICA FARMACÊUTICA",null,"HEMOBRÁS - FILIAL UNID. ADM. (RECIFE)","CELETISTA","40 HORAS SEMANAIS","CONCURSO PÚBLICO","2015-06-16"]
[287,"AGEU BARBOSA DE SOUSA",{"$f":"\"***\"&MID(Planilha1!D4,4,9)&\"**\"","v":"***.285.904-**"},"TÉCNICO IND. E DE GESTÃO CORP. - TRIAGEM DO PLASMA",null,"HEMOBRÁS - FILIAL UNID. FABRIL (GOIANA)","CELETISTA","40 HORAS SEMANAIS","CONCURSO PÚBLICO","2014-09-01"]
[545,"ALANA LAIS DOS SANTOS LIMA",{"$f":"\"***\"&MID(Planilha1!D5,4,9)&\"**\"","v":"***.291.451-**"},"ANALISTA ADM. DE ASSUNTOS CORP. - JORNALISMO",null,"HEMOBRÁS - FILIAL UNID. ADM. (RECIFE)","CELETISTA","40 HORAS SEMANAIS","CONCURSO PÚBLICO","2022-09-20"]
[568,"ALBERT ROCHA DE OLIVEIRA",{"$f":"\"***\"&MID(Planilha1!D6,4,9)&\"**\"","v":"***.391.204-**"},"ANALISTA IND. DE HEMOD. E BIOTEC. - GARANTIA DA QUALIDADE 2",null,"HEMOBRÁS - FILIAL UNID. FABRIL (GOIANA)","CELETISTA","40 HORAS SEMANAIS","CONCURSO PÚBLICO","2022-09-20"]
[726,"ALDENOR SILVA DOS SANTOS",{"$f":"\"***\"&MID(Planilha1!D7,4,9)&\"**\"","v":"***.299.915-**"},"ANALISTA ADM. DE ASSUNTOS CORP. - DESENVOLVIMENTO DE PESSOAS",null,"HEMOBRÁS - FILIAL UNID. FABRIL (GOIANA)","CELETISTA","40 HORAS SEMANAIS","CONCURSO PÚBLICO","2024-01-10"]
[145,"ALEKSANDER CALONGA DE OLIVEIRA",{"$f":"\"***\"&MID(Planilha1!D8,4,9)&\"**\"","v":"***.413.827-**"},"ANALISTA IND. DE HEMOD. E BIOTEC. - FRACION. IND. PLASMA 1",null,"HEMOBRÁS - FILIAL UNID. FABRIL (GOIANA)","CELETISTA","40 HORAS SEMANAIS","CONCURSO PÚBLICO","2011-04-06"]
[727,"ALENE DE OLIVEIRA QUADROS",{"$f":"\"***\"&MID(Planilha1!D9,4,9)&\"**\"","v":"***.911.102-**"},"ANALISTA IND. DE HEMOD. E BIOTEC. - PLASMA E HEMOCOMPONENTES",null,"HEMOBRÁS - FILIAL UNID. ADM. (RECIFE)","CELETISTA","40 HORAS SEMANAIS","CONCURSO PÚBLICO","2024-01-10"]
[698,"ALESSANDRA PEREIRA DA SILVA",{"$f":"\"***\"&MID(Planilha1!D10,4,9)&\"**\"","v":"***.274.132-**"},"ANALISTA IND. DE HEMOD. E BIOTEC. - FRACION. IND. PLASMA 1",null,"HEMOBRÁS - FILIAL UNID. FABRIL (GOIANA)","CELETISTA","40 HORAS SEMANAIS","CONCURSO PÚBLICO","2023-09-05"]
[473,"ALESSON RENATO LOPES VALENCA",{"$f":"\"***\"&MID(Planilha1!D11,4,9)&\"**\"","v":"***.131.194-**"},"TÉCNICO IND. E DE GESTÃO CORP. - AUTOMAÇÃO INDUSTRIAL",null,"HEMOBRÁS - FILIAL UNID. FABRIL (GOIANA)","CELETISTA","40 HORAS SEMANAIS","CONCURSO PÚBLICO","2019-03-01"]
[225,"ALEX HENRIQUE DAS NEVES",{"$f":"\"***\"&MID(Planilha1!D12,4,9)&\"**\"","v":"***.500.684-**"},"ANALISTA IND. DE HEMOD. E BIOTEC. - ENG. MECÂNICA","CHEFE DE SERVIÇO DE MANUTENÇÃO","HEMOBRÁS - FILIAL UNID. FABRIL (GOIANA)","CELETISTA","40 HORAS SEMANAIS","CONCURSO PÚBLICO","2014-02-21"]
[491,"ALEX LAQUIS RESENDE",{"$f":"\"***\"&MID(Planilha1!D13,4,9)&\"**\"","v":"***.507.511-**"},null,"MEMBRO DO COMITÊ DE AUDITORIA","NÃO SE APLICA","NÃO SE APLICA","SEM JORNADA","TERMO DE POSSE","2020-06-15"]
[673,"ALEXANDRE COUTO CARNEIRO VIEIRA",{"$f":"\"***\"&MID(Planilha1!D14,4,9)&\"**\"","v":"***.556.724-**"},"ANALISTA IND. DE HEMOD. E BIOTEC. - FRACION. IND. PLASMA 2",null,"HEMOBRÁS - FILIAL UNID. FABRIL (GOIANA)","CELETISTA","40 HORAS SEMANAIS","CONCURSO PÚBLICO","2023-07-24"]
[479,"ALEXANDRE MUNIZ FARIAS",{"$f":"\"***\"&MID(Planilha1!D15,4,9)&\"**\"","v":"***.651.594-**"},"TÉCNICO IND. E DE GESTÃO CORP. - REFRIGERAÇÃO",null,"HEMOBRÁS - FILIAL UNID. FABRIL (GOIANA)","CELETISTA","40 HORAS SEMANAIS","CONCURSO PÚBLICO","2019-04-15"]
[633,"ALEXSANDRO DA COSTA GOMES",{"$f":"\"***\"&MID(Planilha1!D16,4,9)&\"**\"","v":"***.777.484-**"},"ANALISTA ADM. DE ASSUNTOS CORP. - CONTRATO",null,"HEMOBRÁS - FILIAL UNID. ADM. (RECIFE)","CELETISTA","40 HORAS SEMANAIS","CONCURSO PÚBLICO","2023-02-24"]
[522,"ALINE DANTAS FRANCA",{"$f":"\"***\"&MID(Planilha1!D17,4,9)&\"**\"","v":"***.078.854-**"},"ANALISTA IND. DE HEMOD. E BIOTEC. - FRACION. IND. PLASMA 1",null,"HEMOBRÁS - FILIAL UNID. FABRIL (GOIANA)","CELETISTA","40 HORAS SEMANAIS","CONCURSO PÚBLICO","2022-03-17"]
[596,"ALINE FERREIRA PINTO",{"$f":"\"***\"&MID(Planilha1!D18,4,9)&\"**\"","v":"***.567.592-**"},"ANALISTA IND. DE HEMOD. E BIOTEC. - FRACION. IND. PLASMA 2","CHEFE DE SERVIÇO DE PRODUÇÃO DE HEMODERIVADOS","HEMOBRÁS - FILIAL UNID. FABRIL (GOIANA)","CELETISTA","40 HORAS SEMANAIS","CONCURSO PÚBLICO","2022-11-25"]
[147,"ALINE MARIA LIMA DE OLIVEIRA",{"$f":"\"***\"&MID(Planilha1!D19,4,9)&\"**\"","v":"***.372.654-**"},"ANALISTA IND. DE HEMOD. E BIOTEC. - PLASMA E HEMOCOMPONENTES",null,"HEMOBRÁS - FILIAL UNID. FABRIL (GOIANA)","CELETISTA","40 HORAS SEMANAIS","CONCURSO PÚBLICO","2011-04-06"]
[277,"ALINE REINALDO DIAS",{"$f":"\"***\"&MID(Planilha1!D20,4,9)&\"**\"","v":"***.101.263-**"},"ANALISTA ADM. DE ASSUNTOS CORP. - LOGÍSTICA FARMACÊUTICA",null,"HEMOBRÁS - FILIAL UNID. FABRIL (GOIANA)","CELETISTA","40 HORAS SEMANAIS","CONCURSO PÚBLICO","2014-07-14"]
[274,"AMANDA FERREIRA DE ALMEIDA",{"$f":"\"***\"&MID(Planilha1!D21,4,9)&\"**\"","v":"***.267.174-**"},"ANALISTA IND. DE HEMOD. E BIOTEC. - PLASMA E HEMOCOMPONENTES",null,"HEMOBRÁS - FILIAL UNID. ADM. (RECIFE)","CELETISTA","40 HORAS SEMANAIS","CONCURSO PÚBLICO","2014-07-14"]
[612,"AMANDA LUCENA DOS SANTOS",{"$f":"\"***\"&MID(Planilha1!D22,4,9)&\"**\"","v":"***.957.638-**"},"ANALISTA IND. DE HEMOD. E BIOTEC. - CONTROLE QUALIDADE - 1",null,"HEMOBRÁS - FILIAL UNID. FABRIL (GOIANA)","CELETISTA","40 HORAS SEMANAIS","CONCURSO PÚBLICO","2023-01-25"]
[559,"ANA BEATRIZ LIMA MARTINIANO DE OLIVEIRA",{"$f":"\"***\"&MID(Planilha1!D23,4,9)&\"**\"","v":"***.677.004-**"},"ANALISTA IND. DE HEMOD. E BIOTEC. - GARANTIA DA QUALIDADE 2",null,"HEMOBRÁS - FILIAL UNID. FABRIL (GOIANA)","CELETISTA","40 HORAS SEMANAIS","CONCURSO PÚBLICO","2022-09-20"]
[624,"ANA CATARINA CRISTOVAO SILVA",{"$f":"\"***\"&MID(Planilha1!D24,4,9)&\"**\"","v":"***.292.704-**"},"ANALISTA IND. DE HEMOD. E BIOTEC. - CONTROLE QUALIDADE - 1",null,"HEMOBRÁS - FILIAL UNID. FABRIL (GOIANA)","CELETISTA","40 HORAS SEMANAIS","CONCURSO PÚBLICO","2023-01-25"]
[321,"ANA CELIA AZEVEDO DE SIQUEIRA",{"$f":"\"***\"&MID(Planilha1!D25,4,9)&\"**\"","v":"***.915.384-**"},"ANALISTA IND. DE HEMOD. E BIOTEC. - PLASMA E HEMOCOMPONENTES",null,"HEMOBRÁS - FILIAL UNID. FABRIL (GOIANA)","CELETISTA","40 HORAS SEMANAIS","CONCURSO PÚBLICO","2015-03-02"]
[641,"ANA CLARA CORREIA MELGACO",{"$f":"\"***\"&MID(Planilha1!D26,4,9)&\"**\"","v":"***.353.515-**"},"ANALISTA IND. DE HEMOD. E BIOTEC. - CONTROLE QUALIDADE - 1",null,"HEMOBRÁS - FILIAL UNID. FABRIL (GOIANA)","CELETISTA","40 HORAS SEMANAIS","CONCURSO PÚBLICO","2023-04-25"]
[560,"ANA CLAUDIA GOMES DOS ANJOS NASCIMENTO",{"$f":"\"***\"&MID(Planilha1!D27,4,9)&\"**\"","v":"***.800.844-**"},"ANALISTA IND. DE HEMOD. E BIOTEC. - GARANTIA DA QUALIDADE 2",null,"HEMOBRÁS - FILIAL UNID. FABRIL (GOIANA)","CELETISTA","40 HORAS SEMANAIS","CONCURSO PÚBLICO","2022-09-20"]
[66,"ANA KARINA CAMARA DE SOUZA",{"$f":"\"***\"&MID(Planilha1!D28,4,9)&\"**\"","v":"***.890.734-**"},"ASSISTENTE IND. E DE GESTÃO CORP - TÉC. EM CONTABILIDADE I","ASSISTENTE TÉCNICO ESPECIALIZADO ","HEMOBRÁS - FILIAL UNID. ADM. (RECIFE)","CELETISTA","40 HORAS SEMANAIS","CONCURSO PÚBLICO","2010-03-11"]
[269,"ANA LUCIA PEREIRA DE FARIA GONELLA",{"$f":"\"***\"&MID(Planilha1!D29,4,9)&\"**\"","v":"***.646.371-**"},"ANALISTA IND. DE HEMOD. E BIOTEC. - FRACION. IND. PLASMA 1",null,"HEMOBRÁS - FILIAL UNID. FABRIL (GOIANA)","CELETISTA","40 HORAS SEMANAIS","CONCURSO PÚBLICO","2014-07-14"]
[367,"ANA PAULA MACHADO CORREA",{"$f":"\"***\"&MID(Planilha1!D30,4,9)&\"**\"","v":"***.516.824-**"},"ANALISTA ADM. DE ASSUNTOS CORP. - LOGÍSTICA FARMACÊUTICA",null,"HEMOBRÁS - FILIAL UNID. ADM. (RECIFE)","CELETISTA","40 HORAS SEMANAIS","CONCURSO PÚBLICO","2015-10-20"]
[500,"ANA PAULA TELES FERREIRA BARRETO",{"$f":"\"***\"&MID(Planilha1!D31,4,9)&\"**\"","v":"***.904.191-**"},null,"CONSELHEIRO ADMINISTRATIVO","NÃO SE APLICA","NÃO SE APLICA","SEM JORNADA","TERMO DE POSSE","2021-02-23"]
[443,"ANA PAULA VIEIRA MANINHO",{"$f":"\"***\"&MID(Planilha1!D32,4,9)&\"**\"","v":"***.747.451-**"},"ASSISTENTE IND. E DE GESTÃO CORP - ASSISTENTE ADMINISTRATIVO",null,"HEMOBRÁS - MATRIZ (BRASÍLIA)","CELETISTA","40 HORAS SEMANAIS","CONCURSO PÚBLICO","2018-02-01"]
[205,"ANDERSON ARNDT",{"$f":"\"***\"&MID(Planilha1!D33,4,9)&\"**\"","v":"***.280.898-**"},"ESPECIALISTA EM PHB - CONTROLE QUALIDADE - I",null,"HEMOBRÁS - FILIAL UNID. FABRIL (GOIANA)","CELETISTA","40 HORAS SEMANAIS","CONCURSO PÚBLICO","2014-02-20"]
[524,"ANDERSON DE ABREU DA SILVA",{"$f":"\"***\"&MID(Planilha1!D34,4,9)&\"**\"","v":"***.854.004-**"},"ANALISTA IND. DE HEMOD. E BIOTEC. - FRACION. IND. PLASMA 1",null,"HEMOBRÁS - FILIAL UNID. FABRIL (GOIANA)","CELETISTA","40 HORAS SEMANAIS","CONCURSO PÚBLICO","2022-03-17"]
[447,"ANDERSON JOSE DE ARAUJO",{"$f":"\"***\"&MID(Planilha1!D35,4,9)&\"**\"","v":"***.073.984-**"},"ANALISTA IND. DE HEMOD. E BIOTEC. - CONTROLE QUALIDADE - 3",null,"HEMOBRÁS - FILIAL UNID. FABRIL (GOIANA)","CELETISTA","40 HORAS SEMANAIS","CONCURSO PÚBLICO","2018-04-19"]
[410,"ANDERSON RODRIGO GEROMEL",{"$f":"\"***\"&MID(Planilha1!D36,4,9)&\"**\"","v":"***.915.428-**"},"ANALISTA IND. DE HEMOD. E BIOTEC. - GARANTIA DA QUALIDADE","ASSISTENTE TÉCNICO ESPECIALIZADO ","HEMOBRÁS - FILIAL UNID. FABRIL (GOIANA)","CELETISTA","40 HORAS SEMANAIS","CONCURSO PÚBLICO","2016-08-16"]
[8,"ANDRE GOMES CORREA",{"$f":"\"***\"&MID(Planilha1!D37,4,9)&\"**\"","v":"***.880.074-**"},"ANALISTA DE GES. CORP. - ADVOGADO I",null,"HEMOBRÁS - FILIAL UNID. ADM. (RECIFE)","CELETISTA","40 HORAS SEMANAIS","CONCURSO PÚBLICO","2009-07-03"]
[730,"ANDRE LUIZ MOTA PINHO",{"$f":"\"***\"&MID(Planilha1!D38,4,9)&\"**\"","v":"***.337.154-**"},null,"DIRETOR ADMINISTRATIVO E FINANCEIRO","HEMOBRÁS - FILIAL UNID. ADM. (RECIFE)","REGIME PRÓPRIO","NÃO SE APLICA","TERMO DE POSSE","2024-01-30"]
[561,"ANDREZA MARIA CORREIA DA SILVA",{"$f":"\"***\"&MID(Planilha1!D39,4,9)&\"**\"","v":"***.003.404-**"},"ANALISTA IND. DE HEMOD. E BIOTEC. - GARANTIA DA QUALIDADE 2",null,"HEMOBRÁS - FILIAL UNID. FABRIL (GOIANA)","CELETISTA","40 HORAS SEMANAIS","CONCURSO PÚBLICO","2022-09-20"]
[644,"ANNE CECILIA NASCIMENTO DA CRUZ",{"$f":"\"***\"&MID(Planilha1!D40,4,9)&\"**\"","v":"***.527.105-**"},"ANALISTA IND. DE HEMOD. E BIOTEC. - CONTROLE QUALIDADE - 2",null,"HEMOBRÁS - FILIAL UNID. FABRIL (GOIANA)","CELETISTA","40 HORAS SEMANAIS","CONCURSO PÚBLICO","2023-04-25"]
[347,"ANNE GLEYCE PEREIRA CERQUEIRA","***.910.424-**","TÉCNICO IND. E DE GESTÃO CORP. - TRIAGEM DO PLASMA",null,"HEMOBRÁS - FILIAL UNID. FABRIL (GOIANA)","CELETISTA","40 HORAS SEMANAIS","CONCURSO PÚBLICO","2015-06-16"]
[10,"ANNE KATHLEEN DA SILVA PRIMO",{"$f":"\"***\"&MID(Planilha1!D42,4,9)&\"**\"","v":"***.918.814-**"},"ANALISTA DE GES. CORP. - ENGENHEIRO  DE PRODUÇÃO I","ASSESSOR TÉCNICO ESPECIALIZADO","HEMOBRÁS - FILIAL UNID. FABRIL (GOIANA)","CELETISTA","40 HORAS SEMANAIS","CONCURSO PÚBLICO","2009-09-25"]
[685,"ANNY CAROLINE FERREIRA GUIMARAES",{"$f":"\"***\"&MID(Planilha1!D43,4,9)&\"**\"","v":"***.202.903-**"},"ANALISTA IND. DE HEMOD. E BIOTEC. - FRACION. IND. PLASMA 2",null,"HEMOBRÁS - FILIAL UNID. FABRIL (GOIANA)","CELETISTA","40 HORAS SEMANAIS","CONCURSO PÚBLICO","2023-07-24"]
[206,"ANTONIO DIOGENES PEREIRA DE OLIVEIRA",{"$f":"\"***\"&MID(Planilha1!D44,4,9)&\"**\"","v":"***.877.303-**"},"ESPECIALISTA EM PHB - GARANTIA DA QUALIDADE - I","GERENTE DE GARANTIA DA QUALIDADE","HEMOBRÁS - FILIAL UNID. FABRIL (GOIANA)","CELETISTA","40 HORAS SEMANAIS","CONCURSO PÚBLICO","2014-02-20"]
[487,"ANTONIO EDSON DE SOUZA LUCENA",{"$f":"\"***\"&MID(Planilha1!D45,4,9)&\"**\"","v":"***.987.214-**"},"ESPECIALISTA EM PHB - FRACIONAMENTO INSUSTRIAL DO PLASMA 2","DIRETOR DE DESENVOLVIMENTO INDUSTRIAL/PRESIDENTE","HEMOBRÁS - FILIAL UNID. ADM. (RECIFE)","REGIME PRÓPRIO","NÃO SE APLICA","TERMO DE POSSE","2018-08-30"]
[582,"ARISA DOS SANTOS FERREIRA",{"$f":"\"***\"&MID(Planilha1!D46,4,9)&\"**\"","v":"***.332.594-**"},"ANALISTA IND. DE HEMOD. E BIOTEC. - ASSUNTOS REGULATÓRIOS",null,"HEMOBRÁS - FILIAL UNID. ADM. (RECIFE)","CELETISTA","40 HORAS SEMANAIS","CONCURSO PÚBLICO","2022-11-25"]
[305,"ARISTOTELES MOURA TAVARES JUNIOR",{"$f":"\"***\"&MID(Planilha1!D47,4,9)&\"**\"","v":"***.850.894-**"},"ASSISTENTE IND. E DE GESTÃO CORP - ASSISTENTE ADMINISTRATIVO","ASSESSOR ESPECIAL","HEMOBRÁS - FILIAL UNID. ADM. (RECIFE)","CELETISTA","40 HORAS SEMANAIS","CONCURSO PÚBLICO","2015-01-09"]
[668,"AUGUSTO LOPES SOUTO",{"$f":"\"***\"&MID(Planilha1!D48,4,9)&\"**\"","v":"***.358.054-**"},"ANALISTA IND. DE HEMOD. E BIOTEC. - FRACION. IND. PLASMA 1",null,"HEMOBRÁS - FILIAL UNID. FABRIL (GOIANA)","CELETISTA","40 HORAS SEMANAIS","CONCURSO PÚBLICO","2023-07-24"]
[623,"AUREO HENRIQUE CABRAL DE MELO SOUZA",{"$f":"\"***\"&MID(Planilha1!D49,4,9)&\"**\"","v":"***.202.824-**"},"ANALISTA ADM. DE ASSUNTOS CORP. - CONTABILIDADE",null,"HEMOBRÁS - FILIAL UNID. ADM. (RECIFE)","CELETISTA","40 HORAS SEMANAIS","CONCURSO PÚBLICO","2023-01-25"]
[659,"BARBARA ARYELA BEZERRA DA SILVA ROCHA",{"$f":"\"***\"&MID(Planilha1!D50,4,9)&\"**\"","v":"***.089.404-**"},"ANALISTA IND. DE HEMOD. E BIOTEC. - CONTROLE QUALIDADE - 2",null,"HEMOBRÁS - FILIAL UNID. FABRIL (GOIANA)","CELETISTA","40 HORAS SEMANAIS","CONCURSO PÚBLICO","2023-07-24"]
[671,"BARBARA LUISA CHAGAS DA SILVA",{"$f":"\"***\"&MID(Planilha1!D51,4,9)&\"**\"","v":"***.177.901-**"},"ANALISTA IND. DE HEMOD. E BIOTEC. - FRACION. IND. PLASMA 1",null,"HEMOBRÁS - FILIAL UNID. FABRIL (GOIANA)","CELETISTA","40 HORAS SEMANAIS","CONCURSO PÚBLICO","2023-07-24"]
[76,"BERLINCK ENEAS CORREIA ARAUJO DOS SANTOS",{"$f":"\"***\"&MID(Planilha1!D52,4,9)&\"**\"","v":"***.826.504-**"},"ESPECIALISTA EM PHB - ENG. ELÉTRICO/ELETRÔNICO","ASSESSOR ESPECIAL","HEMOBRÁS - FILIAL UNID. FABRIL (GOIANA)","CELETISTA","40 HORAS SEMANAIS","CONCURSO PÚBLICO","2010-07-01"]
[638,"BIANCA WARUAR PAULO LOBO",{"$f":"\"***\"&MID(Planilha1!D53,4,9)&\"**\"","v":"***.927.377-**"},"ANALISTA IND. DE HEMOD. E BIOTEC. - GARANTIA DA QUALIDADE 2",null,"HEMOBRÁS - FILIAL UNID. FABRIL (GOIANA)","CELETISTA","40 HORAS SEMANAIS","CONCURSO PÚBLICO","2023-02-24"]
[562,"BRAULIO CESAR DE SOUSA",{"$f":"\"***\"&MID(Planilha1!D54,4,9)&\"**\"","v":"***.839.854-**"},"ANALISTA IND. DE HEMOD. E BIOTEC. - GARANTIA DA QUALIDADE 2",null,"HEMOBRÁS - FILIAL UNID. FABRIL (GOIANA)","CELETISTA","40 HORAS SEMANAIS","CONCURSO PÚBLICO","2022-09-20"]
[614,"BRENO GOMES DO NASCIMENTO LOPES",{"$f":"\"***\"&MID(Planilha1!D55,4,9)&\"**\"","v":"***.359.634-**"},"ANALISTA IND. DE HEMOD. E BIOTEC. - CONTROLE QUALIDADE - 2",null,"HEMOBRÁS - FILIAL UNID. FABRIL (GOIANA)","CELETISTA","40 HORAS SEMANAIS","CONCURSO PÚBLICO","2023-01-25"]
[507,"BRUNA CAVALCANTI ARRUDA",{"$f":"\"***\"&MID(Planilha1!D56,4,9)&\"**\"","v":"***.726.754-**"},"ESPECIALISTA EM PHB - CONTROLE QUALIDADE - I","CHEFE DE SERVIÇO DE VALIDAÇÃO E CERTIFICAÇÃO","HEMOBRÁS - FILIAL UNID. FABRIL (GOIANA)","CELETISTA","40 HORAS SEMANAIS","CONCURSO PÚBLICO","2008-02-11"]
[660,"BRUNO AIRES DOS SANTOS",{"$f":"\"***\"&MID(Planilha1!D57,4,9)&\"**\"","v":"***.679.004-**"},"ANALISTA IND. DE HEMOD. E BIOTEC. - CONTROLE QUALIDADE - 2",null,"HEMOBRÁS - FILIAL UNID. FABRIL (GOIANA)","CELETISTA","40 HORAS SEMANAIS","CONCURSO PÚBLICO","2023-07-24"]
[208,"BRUNO EMANUEL FIGUEIREDO BARBOSA",{"$f":"\"***\"&MID(Planilha1!D58,4,9)&\"**\"","v":"***.500.315-**"},"ANALISTA IND. DE HEMOD. E BIOTEC. - GARANTIA DA QUALIDADE",null,"HEMOBRÁS - FILIAL UNID. ADM. (RECIFE)","CELETISTA","40 HORAS SEMANAIS","CONCURSO PÚBLICO","2014-02-20"]
[255,"BRUNO JOSE SENA SOUZA",{"$f":"\"***\"&MID(Planilha1!D59,4,9)&\"**\"","v":"***.931.264-**"},"ANALISTA ADM. DE ASSUNTOS CORP. - ORÇAMENTO E FINANÇAS",null,"HEMOBRÁS - FILIAL UNID. ADM. (RECIFE)","CELETISTA","40 HORAS SEMANAIS","CONCURSO PÚBLICO","2014-07-14"]
[510,"CAIO CESAR SOARES DE SOUSA",{"$f":"\"***\"&MID(Planilha1!D60,4,9)&\"**\"","v":"***.792.914-**"},null,"PROCURADOR GERAL","HEMOBRÁS - FILIAL UNID. ADM. (RECIFE)","CELETISTA","40 HORAS SEMANAIS","PORTARIA ","2021-10-11"]
[411,"CAIO SILVA DUARTE",{"$f":"\"***\"&MID(Planilha1!D61,4,9)&\"**\"","v":"***.627.534-**"},"TÉCNICO IND. E DE GESTÃO CORP. - FRACIONAMENTO DO PLASMA",null,"HEMOBRÁS - FILIAL UNID. FABRIL (GOIANA)","CELETISTA","40 HORAS SEMANAIS","CONCURSO PÚBLICO","2016-08-16"]
[590,"CAMILA BIANCA FERREIRA DA ROCHA",{"$f":"\"***\"&MID(Planilha1!D62,4,9)&\"**\"","v":"***.192.874-**"},"ANALISTA IND. DE HEMOD. E BIOTEC. - FRACION. IND. PLASMA 2",null,"HEMOBRÁS - FILIAL UNID. FABRIL (GOIANA)","CELETISTA","40 HORAS SEMANAIS","CONCURSO PÚBLICO","2022-11-25"]
[396,"CAMILA BRAGA OLIVEIRA",{"$f":"\"***\"&MID(Planilha1!D63,4,9)&\"**\"","v":"***.224.444-**"},"ANALISTA ADM. DE ASSUNTOS CORP. - CONTRATO",null,"HEMOBRÁS - FILIAL UNID. ADM. (RECIFE)","CELETISTA","40 HORAS SEMANAIS","CONCURSO PÚBLICO","2016-03-17"]
[591,"CAMILA CARDOSO RIBEIRO MAIA",{"$f":"\"***\"&MID(Planilha1!D64,4,9)&\"**\"","v":"***.816.946-**"},"ANALISTA IND. DE HEMOD. E BIOTEC. - FRACION. IND. PLASMA 1",null,"HEMOBRÁS - FILIAL UNID. FABRIL (GOIANA)","CELETISTA","40 HORAS SEMANAIS","CONCURSO PÚBLICO","2022-11-25"]
[209,"CAMILA SANTANA PEREIRA",{"$f":"\"***\"&MID(Planilha1!D65,4,9)&\"**\"","v":"***.506.056-**"},"ANALISTA IND. DE HEMOD. E BIOTEC. - PLASMA E HEMOCOMPONENTES","SECRETÁRIA EXECUTIVA ","HEMOBRÁS - FILIAL UNID. ADM. (RECIFE)","CELETISTA","40 HORAS SEMANAIS","CONCURSO PÚBLICO","2014-02-20"]
[676,"CAMILA SUGUIURA EVANGELISTA",{"$f":"\"***\"&MID(Planilha1!D66,4,9)&\"**\"","v":"***.144.541-**"},"ANALISTA IND. DE HEMOD. E BIOTEC. - FRACION. IND. PLASMA 1",null,"HEMOBRÁS - FILIAL UNID. FABRIL (GOIANA)","CELETISTA","40 HORAS SEMANAIS","CONCURSO PÚBLICO","2023-07-24"]
[563,"CAMILE CAMINHA ANDRADE MAGALHAES",{"$f":"\"***\"&MID(Planilha1!D67,4,9)&\"**\"","v":"***.827.803-**"},"ANALISTA IND. DE HEMOD. E BIOTEC. - GARANTIA DA QUALIDADE 2",null,"HEMOBRÁS - FILIAL UNID. FABRIL (GOIANA)","CELETISTA","40 HORAS SEMANAIS","CONCURSO PÚBLICO","2022-09-20"]
[679,"CARLA CATARINE SANTOS RODRIGUES",{"$f":"\"***\"&MID(Planilha1!D68,4,9)&\"**\"","v":"***.055.315-**"},"ANALISTA IND. DE HEMOD. E BIOTEC. - FRACION. IND. PLASMA 1",null,"HEMOBRÁS - FILIAL UNID. FABRIL (GOIANA)","CELETISTA","40 HORAS SEMANAIS","CONCURSO PÚBLICO","2023-07-24"]
[695,"CARLOS AMILCAR SALGADO",{"$f":"\"***\"&MID(Planilha1!D69,4,9)&\"**\"","v":"***.982.626-**"},null,"CONSELHEIRO ADMINISTRATIVO","NÃO SE APLICA","NÃO SE APLICA","SEM JORNADA","TERMO DE POSSE","2023-08-11"]
[696,"CARLOS AUGUSTO GRABOIS GADELHA",{"$f":"\"***\"&MID(Planilha1!D70,4,9)&\"**\"","v":"***.047.737-**"},null,"CONSELHEIRO ADMINISTRATIVO","NÃO SE APLICA","NÃO SE APLICA","SEM JORNADA","TERMO DE POSSE","2023-08-11"]
[262,"CARLOS VINICIUS VIANA DE SOUZA",{"$f":"\"***\"&MID(Planilha1!D71,4,9)&\"**\"","v":"***.037.904-**"},"ANALISTA IND. DE HEMOD. E BIOTEC. - ENG. MECÂNICA","GERENTE DE ENGENHARIA E AUTOMAÇÃO","HEMOBRÁS - FILIAL UNID. FABRIL (GOIANA)","CELETISTA","40 HORAS SEMANAIS","CONCURSO PÚBLICO","2014-07-14"]
[75,"CAUEH NUNES JOVINO",{"$f":"\"***\"&MID(Planilha1!D72,4,9)&\"**\"","v":"***.099.944-**"},"ESPECIALISTA EM PHB - FRAC. IND. PLASMA 2",null,"HEMOBRÁS - FILIAL UNID. FABRIL (GOIANA)","CELETISTA","40 HORAS SEMANAIS","CONCURSO PÚBLICO","2010-07-01"]
[549,"CELIA CHARLENE NASCIMENTO DA SILVA",{"$f":"\"***\"&MID(Planilha1!D73,4,9)&\"**\"","v":"***.330.564-**"},"ANALISTA IND. DE HEMOD. E BIOTEC. - PLASMA E HEMOCOMPONENTES",null,"HEMOBRÁS - FILIAL UNID. FABRIL (GOIANA)","CELETISTA","40 HORAS SEMANAIS","CONCURSO PÚBLICO","2022-09-20"]
[557,"CHRISTIAN MELO DE OLIVEIRA",{"$f":"\"***\"&MID(Planilha1!D74,4,9)&\"**\"","v":"***.094.414-**"},"ANALISTA IND. DE HEMOD. E BIOTEC. - CONTROLE QUALIDADE - 2",null,"HEMOBRÁS - FILIAL UNID. FABRIL (GOIANA)","CELETISTA","40 HORAS SEMANAIS","CONCURSO PÚBLICO","2022-09-20"]
[509,"CHRISTIANO STINGLIN MADRUGA",{"$f":"\"***\"&MID(Planilha1!D75,4,9)&\"**\"","v":"***.954.289-**"},"ESPECIALISTA EM PHB - FRAC. IND. PLASMA 1 - I","CHEFE DE SERVIÇO DE AUTOMAÇÃO","HEMOBRÁS - FILIAL UNID. FABRIL (GOIANA)","CELETISTA","40 HORAS SEMANAIS","CONCURSO PÚBLICO","2008-11-03"]
[291,"CINTHIA SILVEIRA QUEIROGA",{"$f":"\"***\"&MID(Planilha1!D76,4,9)&\"**\"","v":"***.174.644-**"},"ANALISTA IND. DE HEMOD. E BIOTEC. - ARMAZ E DISTRIB DE MEDIC",null,"HEMOBRÁS - FILIAL UNID. FABRIL (GOIANA)","CELETISTA","40 HORAS SEMANAIS","CONCURSO PÚBLICO","2014-10-15"]
[585,"CIRO BAZILIO FALCAO",{"$f":"\"***\"&MID(Planilha1!D77,4,9)&\"**\"","v":"***.733.004-**"},"ANALISTA ADM. DE ASSUNTOS CORP. - CONTRATO",null,"HEMOBRÁS - FILIAL UNID. ADM. (RECIFE)","CELETISTA","40 HORAS SEMANAIS","CONCURSO PÚBLICO","2022-11-25"]
[573,"CLARA PATRICIA FAGUNDES CABRAL",{"$f":"\"***\"&MID(Planilha1!D78,4,9)&\"**\"","v":"***.870.484-**"},"ANALISTA IND. DE HEMOD. E BIOTEC. - ARMAZ E DISTRIB DE MEDIC",null,"HEMOBRÁS - FILIAL UNID. FABRIL (GOIANA)","CELETISTA","40 HORAS SEMANAIS","CONCURSO PÚBLICO","2022-09-20"]
[226,"CLAUDIA VIVIANE LINS RIBEIRO",{"$f":"\"***\"&MID(Planilha1!D79,4,9)&\"**\"","v":"***.631.244-**"},"ASSISTENTE IND. E DE GESTÃO CORP - ASSISTENTE ADMINISTRATIVO",null,"HEMOBRÁS - FILIAL UNID. ADM. (RECIFE)","CELETISTA","40 HORAS SEMANAIS","CONCURSO PÚBLICO","2014-02-21"]
[4,"CLAUDIO LOPES JUNIOR",{"$f":"\"***\"&MID(Planilha1!D80,4,9)&\"**\"","v":"***.075.984-**"},"TÉCNICO IND. E DE GESTÃO CORP. - TÉC. EM INFORMÁTICA I","ASSISTENTE TÉCNICO","HEMOBRÁS - FILIAL UNID. ADM. (RECIFE)","CELETISTA","40 HORAS SEMANAIS","CONCURSO PÚBLICO","2010-04-19"]
[368,"CLAUDIONOR DE CASSIO DOS SANTOS SOUZA JUNIOR",{"$f":"\"***\"&MID(Planilha1!D81,4,9)&\"**\"","v":"***.162.774-**"},"ANALISTA ADM. DE ASSUNTOS CORP. - LOGÍSTICA FARMACÊUTICA",null,"HEMOBRÁS - FILIAL UNID. ADM. (RECIFE)","CELETISTA","40 HORAS SEMANAIS","CONCURSO PÚBLICO","2015-10-20"]
[140,"CLEBER COELHO CARDOSO JUNIOR",{"$f":"\"***\"&MID(Planilha1!D82,4,9)&\"**\"","v":"***.576.421-**"},null,"ASSISTENTE TÉCNICO ESPECIALIZADO","HEMOBRÁS - MATRIZ (BRASÍLIA)","CELETISTA","40 HORAS SEMANAIS","CONCURSO PÚBLICO","2010-07-21"]
[174,"CLEDIVALDO DE BRITO SILVA",{"$f":"\"***\"&MID(Planilha1!D83,4,9)&\"**\"","v":"***.136.914-**"},null,"ASSISTENTE TÉCNICO ESPECIALIZADO","HEMOBRÁS - FILIAL UNID. ADM. (RECIFE)","CELETISTA","40 HORAS SEMANAIS","CONCURSO PÚBLICO","2012-04-09"]
[578,"CRISTIANO BELARMINO DA SILVA",{"$f":"\"***\"&MID(Planilha1!D84,4,9)&\"**\"","v":"***.457.804-**"},"ANALISTA ADM. DE ASSUNTOS CORP. - CONTABILIDADE",null,"HEMOBRÁS - FILIAL UNID. ADM. (RECIFE)","CELETISTA","40 HORAS SEMANAIS","CONCURSO PÚBLICO","2022-10-18"]
[592,"CYNTHIA GISELE DE OLIVEIRA COIMBRA",{"$f":"\"***\"&MID(Planilha1!D85,4,9)&\"**\"","v":"***.403.404-**"},"ANALISTA IND. DE HEMOD. E BIOTEC. - FRACION. IND. PLASMA 2",null,"HEMOBRÁS - FILIAL UNID. FABRIL (GOIANA)","CELETISTA","40 HORAS SEMANAIS","CONCURSO PÚBLICO","2022-11-25"]
[412,"DANIEL CARLOS JUNIOR",{"$f":"\"***\"&MID(Planilha1!D86,4,9)&\"**\"","v":"***.404.304-**"},"TÉCNICO IND. E DE GESTÃO CORP. - FRACIONAMENTO DO PLASMA",null,"HEMOBRÁS - FILIAL UNID. FABRIL (GOIANA)","CELETISTA","40 HORAS SEMANAIS","CONCURSO PÚBLICO","2016-08-16"]
[706,"DANIEL MARIO ALVES DE PAULA",{"$f":"\"***\"&MID(Planilha1!D87,4,9)&\"**\"","v":"***.094.471-**"},null,"CONSELHEIRO FISCAL","NÃO SE APLICA","NÃO SE APLICA","SEM JORNADA","TERMO DE POSSE","2023-08-28"]
[681,"DANIEL RIBEIRO GRIJO",{"$f":"\"***\"&MID(Planilha1!D88,4,9)&\"**\"","v":"***.330.117-**"},"ANALISTA IND. DE HEMOD. E BIOTEC. - FRACION. IND. PLASMA 1",null,"HEMOBRÁS - FILIAL UNID. FABRIL (GOIANA)","CELETISTA","40 HORAS SEMANAIS","CONCURSO PÚBLICO","2023-07-24"]
[330,"DANIELLA SUZANA DE FARIAS",{"$f":"\"***\"&MID(Planilha1!D89,4,9)&\"**\"","v":"***.280.844-**"},"ASSISTENTE IND. E DE GESTÃO CORP - ASSISTENTE ADMINISTRATIVO",null,"HEMOBRÁS - FILIAL UNID. ADM. (RECIFE)","CELETISTA","40 HORAS SEMANAIS","CONCURSO PÚBLICO","2015-04-13"]
[295,"DANIELLE COUTINHO LORDAO",{"$f":"\"***\"&MID(Planilha1!D90,4,9)&\"**\"","v":"***.770.364-**"},"ANALISTA IND. DE HEMOD. E BIOTEC. - ARMAZ E DISTRIB DE MEDIC",null,"HEMOBRÁS - FILIAL UNID. FABRIL (GOIANA)","CELETISTA","40 HORAS SEMANAIS","CONCURSO PÚBLICO","2014-12-05"]
[637,"DANIELLY ROCHA CAVALCANTI DE LIRA",{"$f":"\"***\"&MID(Planilha1!D91,4,9)&\"**\"","v":"***.348.294-**"},"ANALISTA IND. DE HEMOD. E BIOTEC. - GARANTIA DA QUALIDADE 2",null,"HEMOBRÁS - FILIAL UNID. FABRIL (GOIANA)","CELETISTA","40 HORAS SEMANAIS","CONCURSO PÚBLICO","2023-02-24"]
[332,"DANILO RICARDO SILVA TOSCANO",{"$f":"\"***\"&MID(Planilha1!D92,4,9)&\"**\"","v":"***.653.534-**"},"ASSISTENTE IND. E DE GESTÃO CORP - TÉC. EM CONTABILIDADE I",null,"HEMOBRÁS - FILIAL UNID. ADM. (RECIFE)","CELETISTA","40 HORAS SEMANAIS","CONCURSO PÚBLICO","2015-04-13"]
[525,"DAVI DE FRANCA CARNEIRO",{"$f":"\"***\"&MID(Planilha1!D93,4,9)&\"**\"","v":"***.024.944-**"},"ANALISTA ADM. DE ASSUNTOS CORP. - TECNOLOGIA DA INFORMAÇÃO",null,"HEMOBRÁS - FILIAL UNID. ADM. (RECIFE)","CELETISTA","40 HORAS SEMANAIS","CONCURSO PÚBLICO","2022-03-17"]
[611,"DAVI TITO FARIAS",{"$f":"\"***\"&MID(Planilha1!D94,4,9)&\"**\"","v":"***.209.584-**"},"ANALISTA ADM. DE ASSUNTOS CORP. - TECNOLOGIA DA INFORMAÇÃO",null,"HEMOBRÁS - FILIAL UNID. ADM. (RECIFE)","CELETISTA","40 HORAS SEMANAIS","CONCURSO PÚBLICO","2023-01-25"]
[544,"DAYVSON BRUNO PEREIRA DA SILVA",{"$f":"\"***\"&MID(Planilha1!D95,4,9)&\"**\"","v":"***.341.284-**"},"ANALISTA ADM. DE ASSUNTOS CORP. - CONTABILIDADE",null,"HEMOBRÁS - FILIAL UNID. ADM. (RECIFE)","CELETISTA","40 HORAS SEMANAIS","CONCURSO PÚBLICO","2022-09-20"]
[700,"DEMETRIUS SILVA UMBELINO",{"$f":"\"***\"&MID(Planilha1!D96,4,9)&\"**\"","v":"***.522.634-**"},"ANALISTA ADM. DE ASSUNTOS CORP. - LOGÍSTICA FARMACÊUTICA 1",null,"HEMOBRÁS - FILIAL UNID. FABRIL (GOIANA)","CELETISTA","40 HORAS SEMANAIS","CONCURSO PÚBLICO","2023-08-23"]
[397,"DICEU NAZARIO DE OLIVEIRA",{"$f":"\"***\"&MID(Planilha1!D97,4,9)&\"**\"","v":"***.442.084-**"},"ANALISTA ADM. DE ASSUNTOS CORP. - DESENVOLVIMENTO DE PESSOAS",null,"HEMOBRÁS - FILIAL UNID. FABRIL (GOIANA)","CELETISTA","40 HORAS SEMANAIS","CONCURSO PÚBLICO","2016-04-06"]
[709,"DIEGO PESSOA GOMES",{"$f":"\"***\"&MID(Planilha1!D98,4,9)&\"**\"","v":"***.961.034-**"},null,"CONSELHEIRO ADMINISTRATIVO","NÃO SE APLICA","NÃO SE APLICA","SEM JORNADA","TERMO DE POSSE","2023-09-25"]
[474,"DIEGO PHILIPE DOS SANTOS BARBOSA",{"$f":"\"***\"&MID(Planilha1!D99,4,9)&\"**\"","v":"***.411.634-**"},"ANALISTA IND. DE HEMOD. E BIOTEC. - FRACION. IND. PLASMA 1",null,"HEMOBRÁS - FILIAL UNID. FABRIL (GOIANA)","CELETISTA","40 HORAS SEMANAIS","CONCURSO PÚBLICO","2019-03-01"]
[677,"DILIANE HELENA DO NASCIMENTO",{"$f":"\"***\"&MID(Planilha1!D100,4,9)&\"**\"","v":"***.414.454-**"},"ANALISTA IND. DE HEMOD. E BIOTEC. - FRACION. IND. PLASMA 2",null,"HEMOBRÁS - FILIAL UNID. FABRIL (GOIANA)","CELETISTA","40 HORAS SEMANAIS","CONCURSO PÚBLICO","2023-07-24"]
[440,"DIOGO JOSE ALVES BARBOZA",{"$f":"\"***\"&MID(Planilha1!D101,4,9)&\"**\"","v":"***.749.434-**"},"ANALISTA ADM. DE ASSUNTOS CORP. - LICITAÇÃO E CONTRATOS",null,"HEMOBRÁS - FILIAL UNID. ADM. (RECIFE)","CELETISTA","40 HORAS SEMANAIS","CONCURSO PÚBLICO","2018-01-17"]
[639,"DYLO FELICIANO DE JESUS",{"$f":"\"***\"&MID(Planilha1!D102,4,9)&\"**\"","v":"***.753.957-**"},null,"ASSESSOR ESPECIAL","HEMOBRÁS - FILIAL UNID. FABRIL (GOIANA)","CELETISTA","40 HORAS SEMANAIS","PORTARIA ","2023-04-04"]
[398,"DYOGO JOSE BRAGA AZEVEDO DE FARIA",{"$f":"\"***\"&MID(Planilha1!D103,4,9)&\"**\"","v":"***.089.544-**"},"ASSISTENTE IND. E DE GESTÃO CORP - ASSISTENTE ADMINISTRATIVO",null,"HEMOBRÁS - FILIAL UNID. FABRIL (GOIANA)","CELETISTA","40 HORAS SEMANAIS","CONCURSO PÚBLICO","2016-04-18"]
[724,"EBERTON HELRY RODRIGUES DA SILVA",{"$f":"\"***\"&MID(Planilha1!D104,4,9)&\"**\"","v":"***5068470**"},"TÉCNICO IND. E DE GESTÃO CORP. - MECANICA",null,"HEMOBRÁS - FILIAL UNID. FABRIL (GOIANA)","CELETISTA","40 HORAS SEMANAIS","CONCURSO PÚBLICO","2024-01-10"]
[17,"EDMAR JOSE BARBOSA ACIOLI",{"$f":"\"***\"&MID(Planilha1!D105,4,9)&\"**\"","v":"***.579.544-**"},"ESPECIALISTA EM PHB - FRAC. IND. PLASMA 1 - I",null,"HEMOBRÁS - FILIAL UNID. ADM. (RECIFE)","CELETISTA","40 HORAS SEMANAIS","CONCURSO PÚBLICO","2009-08-04"]
[237,"EDNALDO BISPO DOS SANTOS",{"$f":"\"***\"&MID(Planilha1!D106,4,9)&\"**\"","v":"***.728.725-**"},"TÉCNICO IND. E DE GESTÃO CORP. - AUTOMAÇÃO INDUSTRIAL",null,"HEMOBRÁS - FILIAL UNID. FABRIL (GOIANA)","CELETISTA","40 HORAS SEMANAIS","CONCURSO PÚBLICO","2014-02-24"]
[452,"EDUARDA VANESSA CAVALCANTE MANGUEIRA",{"$f":"\"***\"&MID(Planilha1!D107,4,9)&\"**\"","v":"***.793.414-**"},"ANALISTA IND. DE HEMOD. E BIOTEC. - CONTROLE QUALIDADE - 1",null,"HEMOBRÁS - FILIAL UNID. FABRIL (GOIANA)","CELETISTA","40 HORAS SEMANAIS","CONCURSO PÚBLICO","2018-07-09"]
[148,"ELEONORA FIGUEIREDO PIRES",{"$f":"\"***\"&MID(Planilha1!D108,4,9)&\"**\"","v":"***.018.634-**"},"ESPECIALISTA EM PHB - FRAC. IND. PLASMA 2",null,"HEMOBRÁS - FILIAL UNID. FABRIL (GOIANA)","CELETISTA","40 HORAS SEMANAIS","CONCURSO PÚBLICO","2011-04-06"]
[551,"ELIAS SOUZA SILVA",{"$f":"\"***\"&MID(Planilha1!D109,4,9)&\"**\"","v":"***.721.955-**"},"ANALISTA IND. DE HEMOD. E BIOTEC. - PLASMA E HEMOCOMPONENTES",null,"HEMOBRÁS - FILIAL UNID. ADM. (RECIFE)","CELETISTA","40 HORAS SEMANAIS","CONCURSO PÚBLICO","2022-09-20"]
[615,"ELOIZA MARCELLE DA COSTA SOUZA",{"$f":"\"***\"&MID(Planilha1!D110,4,9)&\"**\"","v":"***.640.824-**"},"ANALISTA IND. DE HEMOD. E BIOTEC. - CONTROLE QUALIDADE - 2",null,"HEMOBRÁS - FILIAL UNID. FABRIL (GOIANA)","CELETISTA","40 HORAS SEMANAIS","CONCURSO PÚBLICO","2023-01-25"]
[454,"ELTON DA SILVA CHAVES",{"$f":"\"***\"&MID(Planilha1!D111,4,9)&\"**\"","v":"***.509.892-**"},null,"CONSELHEIRO ADMINISTRATIVO","NÃO SE APLICA","NÃO SE APLICA","SEM JORNADA","TERMO DE POSSE","2018-08-30"]
[350,"EMANUEL COSTA DO PRADO",{"$f":"\"***\"&MID(Planilha1!D112,4,9)&\"**\"","v":"***.411.894-**"},"ASSISTENTE IND. E DE GESTÃO CORP - ASSISTENTE ADMINISTRATIVO",null,"HEMOBRÁS - FILIAL UNID. ADM. (RECIFE)","CELETISTA","40 HORAS SEMANAIS","CONCURSO PÚBLICO","2015-06-16"]
[146,"EMANUEL RODRIGUES DE MORAIS FILHO",{"$f":"\"***\"&MID(Planilha1!D113,4,9)&\"**\"","v":"***.541.774-**"},"TÉCNICO EM PHB - I",null,"HEMOBRÁS - FILIAL UNID. ADM. (RECIFE)","CELETISTA","40 HORAS SEMANAIS","CONCURSO PÚBLICO","2011-04-06"]
[293,"EMANUELA CORIOLANO SILVA",{"$f":"\"***\"&MID(Planilha1!D114,4,9)&\"**\"","v":"***.016.693-**"},"ANALISTA ADM. DE ASSUNTOS CORP. - PLANEJAMENTO ESTRATÉGICO",null,"HEMOBRÁS - MATRIZ (BRASÍLIA)","CELETISTA","40 HORAS SEMANAIS","CONCURSO PÚBLICO","2014-12-05"]
[82,"EMILIA MEGUMI SHIGUEOKA",{"$f":"\"***\"&MID(Planilha1!D115,4,9)&\"**\"","v":"***.169.159-**"},"ESPECIALISTA EM PHB - FRAC. IND. PLASMA 2",null,"HEMOBRÁS - FILIAL UNID. FABRIL (GOIANA)","CELETISTA","40 HORAS SEMANAIS","CONCURSO PÚBLICO","2010-08-23"]
[376,"EMMANUEL DA SILVA NASCIMENTO",{"$f":"\"***\"&MID(Planilha1!D116,4,9)&\"**\"","v":"***.686.244-**"},"ANALISTA IND. DE HEMOD. E BIOTEC. - ENG. CIVIL",null,"HEMOBRÁS - FILIAL UNID. FABRIL (GOIANA)","CELETISTA","40 HORAS SEMANAIS","CONCURSO PÚBLICO","2015-10-20"]
[630,"ENNY ROSE BEZERRA BRAINER SILVA",{"$f":"\"***\"&MID(Planilha1!D117,4,9)&\"**\"","v":"***.278.534-**"},"ANALISTA IND. DE HEMOD. E BIOTEC. - CONTROLE QUALIDADE - 2",null,"HEMOBRÁS - FILIAL UNID. FABRIL (GOIANA)","CELETISTA","40 HORAS SEMANAIS","CONCURSO PÚBLICO","2023-02-24"]
[717,"ERICK GALDINO MASCARENHAS LEITE",{"$f":"\"***\"&MID(Planilha1!D118,4,9)&\"**\"","v":"***.015.024-**"},"ASSISTENTE IND. E DE GESTÃO CORP - ASSISTENTE ADMINISTRATIVO",null,"HEMOBRÁS - FILIAL UNID. ADM. (RECIFE)","CELETISTA","40 HORAS SEMANAIS","CONCURSO PÚBLICO","2023-10-09"]
[609,"ESSIA DE ALMEIDA LIMA",{"$f":"\"***\"&MID(Planilha1!D119,4,9)&\"**\"","v":"***.575.604-**"},"TÉCNICO IND. E DE GESTÃO CORP. - TRIAGEM DO PLASMA",null,"HEMOBRÁS - FILIAL UNID. FABRIL (GOIANA)","CELETISTA","40 HORAS SEMANAIS","CONCURSO PÚBLICO","2023-01-25"]
[675,"EURIPEDES TARGINO LINHARES NETO",{"$f":"\"***\"&MID(Planilha1!D120,4,9)&\"**\"","v":"***.480.674-**"},"ANALISTA IND. DE HEMOD. E BIOTEC. - FRACION. IND. PLASMA 2",null,"HEMOBRÁS - FILIAL UNID. FABRIL (GOIANA)","CELETISTA","40 HORAS SEMANAIS","CONCURSO PÚBLICO","2023-07-24"]
[358,"EVERTON MAMEDE FREITAS DO SACRAMENTO",{"$f":"\"***\"&MID(Planilha1!D121,4,9)&\"**\"","v":"***.493.574-**"},"ANALISTA ADM. DE ASSUNTOS CORP. - DESENVOLVIMENTO DE PESSOAS",null,"HEMOBRÁS - FILIAL UNID. ADM. (RECIFE)","CELETISTA","40 HORAS SEMANAIS","CONCURSO PÚBLICO","2015-06-16"]
[583,"EWERTON HENRIQUE DA SILVEIRA MORAIS",{"$f":"\"***\"&MID(Planilha1!D122,4,9)&\"**\"","v":"***.523.314-**"},"ANALISTA ADM. DE ASSUNTOS CORP. - COMPRAS NAC. E INTERNAC.",null,"HEMOBRÁS - FILIAL UNID. ADM. (RECIFE)","CELETISTA","40 HORAS SEMANAIS","CONCURSO PÚBLICO","2022-11-25"]
[456,"FABIANA MARIA TEIXEIRA DO REGO BARROS",{"$f":"\"***\"&MID(Planilha1!D123,4,9)&\"**\"","v":"***.943.494-**"},null,"ASSESSOR JURÍDICO","HEMOBRÁS - FILIAL UNID. ADM. (RECIFE)","CELETISTA","40 HORAS SEMANAIS","CONCURSO PÚBLICO","2018-09-04"]
[642,"FABIANA MENEZES DE SOUZA CAMARA",{"$f":"\"***\"&MID(Planilha1!D124,4,9)&\"**\"","v":"***.428.592-**"},"ANALISTA IND. DE HEMOD. E BIOTEC. - CONTROLE QUALIDADE - 2",null,"HEMOBRÁS - FILIAL UNID. FABRIL (GOIANA)","CELETISTA","40 HORAS SEMANAIS","CONCURSO PÚBLICO","2023-04-25"]
[542,"FABIANO ALVES DA SILVA",{"$f":"\"***\"&MID(Planilha1!D125,4,9)&\"**\"","v":"***.631.274-**"},"ANALISTA ADM. DE ASSUNTOS CORP. - TECNOLOGIA DA INFORMAÇÃO",null,"HEMOBRÁS - FILIAL UNID. FABRIL (GOIANA)","CELETISTA","40 HORAS SEMANAIS","CONCURSO PÚBLICO","2022-09-20"]
[229,"FABIO AUGUSTO DA CRUZ LIMA",{"$f":"\"***\"&MID(Planilha1!D126,4,9)&\"**\"","v":"***.803.014-**"},"ANALISTA ADM. DE ASSUNTOS CORP. - LOGÍSTICA FARMACÊUTICA",null,"HEMOBRÁS - FILIAL UNID. ADM. (RECIFE)","CELETISTA","40 HORAS SEMANAIS","CONCURSO PÚBLICO","2014-02-21"]
[20,"FABRICIO CHAVES MARTINS",{"$f":"\"***\"&MID(Planilha1!D127,4,9)&\"**\"","v":"***.443.685-**"},"ESPECIALISTA EM PHB - CONTROLE QUALIDADE - I",null,"HEMOBRÁS - FILIAL UNID. ADM. (RECIFE)","CELETISTA","40 HORAS SEMANAIS","CONCURSO PÚBLICO","2009-07-10"]
[210,"FELIPE ALENCAR DE OLIVEIRA",{"$f":"\"***\"&MID(Planilha1!D128,4,9)&\"**\"","v":"***.631.734-**"},"ESPECIALISTA EM PHB - ENGENHEIRO MECÂNICO - I",null,"HEMOBRÁS - FILIAL UNID. FABRIL (GOIANA)","CELETISTA","40 HORAS SEMANAIS","CONCURSO PÚBLICO","2014-02-20"]
[593,"FELIPE LEONARDO BLEY FIALHO",{"$f":"\"***\"&MID(Planilha1!D129,4,9)&\"**\"","v":"***.060.021-**"},"ANALISTA IND. DE HEMOD. E BIOTEC. - FRACION. IND. PLASMA 2",null,"HEMOBRÁS - FILIAL UNID. FABRIL (GOIANA)","CELETISTA","40 HORAS SEMANAIS","CONCURSO PÚBLICO","2022-11-25"]
[369,"FELIPE NOBREGA SOUSA DE FIGUEIREDO",{"$f":"\"***\"&MID(Planilha1!D130,4,9)&\"**\"","v":"***.759.504-**"},"ANALISTA IND. DE HEMOD. E BIOTEC. - CONTROLE QUALIDADE - 2",null,"HEMOBRÁS - FILIAL UNID. FABRIL (GOIANA)","CELETISTA","40 HORAS SEMANAIS","CONCURSO PÚBLICO","2015-10-20"]
[375,"FELIPE TIAGO JOSE DOS SANTOS",{"$f":"\"***\"&MID(Planilha1!D131,4,9)&\"**\"","v":"***.868.544-**"},"ANALISTA IND. DE HEMOD. E BIOTEC. - GARANTIA DA QUALIDADE",null,"HEMOBRÁS - FILIAL UNID. FABRIL (GOIANA)","CELETISTA","40 HORAS SEMANAIS","CONCURSO PÚBLICO","2015-10-20"]
[462,"FERNANDA ALVES MORAES",{"$f":"\"***\"&MID(Planilha1!D132,4,9)&\"**\"","v":"***.029.234-**"},null,"ASSESSOR ESPECIAL","HEMOBRÁS - FILIAL UNID. ADM. (RECIFE)","CELETISTA","40 HORAS SEMANAIS","PORTARIA ","2018-11-05"]
[270,"FERNANDA SEVERO DE REZENDE RIBEIRO",{"$f":"\"***\"&MID(Planilha1!D133,4,9)&\"**\"","v":"***.230.776-**"},"ANALISTA IND. DE HEMOD. E BIOTEC. - FRACION. IND. PLASMA 1",null,"HEMOBRÁS - FILIAL UNID. FABRIL (GOIANA)","CELETISTA","40 HORAS SEMANAIS","CONCURSO PÚBLICO","2014-07-14"]
[597,"FERNANDO HENRIQUE ALVES DE CARVALHO",{"$f":"\"***\"&MID(Planilha1!D134,4,9)&\"**\"","v":"***.006.834-**"},"ANALISTA IND. DE HEMOD. E BIOTEC. - FRACION. IND. PLASMA 1",null,"HEMOBRÁS - FILIAL UNID. FABRIL (GOIANA)","CELETISTA","40 HORAS SEMANAIS","CONCURSO PÚBLICO","2022-11-25"]
[271,"FERNANDO KENJI JACOJACO",{"$f":"\"***\"&MID(Planilha1!D135,4,9)&\"**\"","v":"***.151.479-**"},"ANALISTA IND. DE HEMOD. E BIOTEC. - FRACION. IND. PLASMA 1",null,"HEMOBRÁS - FILIAL UNID. FABRIL (GOIANA)","CELETISTA","40 HORAS SEMANAIS","CONCURSO PÚBLICO","2014-07-14"]
[576,"FILIPE GALVAO AZEVEDO CHAVES",{"$f":"\"***\"&MID(Planilha1!D136,4,9)&\"**\"","v":"***.879.854-**"},"ANALISTA ADM. DE ASSUNTOS CORP. - ORÇAMENTO E FINANÇAS",null,"HEMOBRÁS - FILIAL UNID. ADM. (RECIFE)","CELETISTA","40 HORAS SEMANAIS","CONCURSO PÚBLICO","2022-10-18"]
[584,"FLAVIA CAROLINA FERNANDES CABRAL",{"$f":"\"***\"&MID(Planilha1!D137,4,9)&\"**\"","v":"***.960.464-**"},"ANALISTA ADM. DE ASSUNTOS CORP. - COMPRAS NAC. E INTERNAC.",null,"HEMOBRÁS - FILIAL UNID. ADM. (RECIFE)","CELETISTA","40 HORAS SEMANAIS","CONCURSO PÚBLICO","2022-11-25"]
[564,"FLAVIELLE MARTINS DE MELO",{"$f":"\"***\"&MID(Planilha1!D138,4,9)&\"**\"","v":"***.426.239-**"},"ANALISTA IND. DE HEMOD. E BIOTEC. - GARANTIA DA QUALIDADE 2",null,"HEMOBRÁS - FILIAL UNID. FABRIL (GOIANA)","CELETISTA","40 HORAS SEMANAIS","CONCURSO PÚBLICO","2022-09-20"]
[200,"FLORENTINA DE ALBUQUERQUE MARANHAO SIMOES",{"$f":"\"***\"&MID(Planilha1!D139,4,9)&\"**\"","v":"***.443.204-**"},null,"CHEFE DE SERVIÇO DE ADMINISTRAÇÃO DE PESSOAL","HEMOBRÁS - FILIAL UNID. ADM. (RECIFE)","CELETISTA","40 HORAS SEMANAIS","PORTARIA ","2013-10-14"]
[230,"FRANCINE DOMICIANO DUARTE SANTOS",{"$f":"\"***\"&MID(Planilha1!D140,4,9)&\"**\"","v":"***.552.094-**"},"ANALISTA DE GES. CORP. - COMPRAS NACIONAIS E INTERNACIONAIS",null,"HEMOBRÁS - FILIAL UNID. ADM. (RECIFE)","CELETISTA","40 HORAS SEMANAIS","CONCURSO PÚBLICO","2014-02-21"]
[231,"FRANCISCO FLAVIO OLIVEIRA DE ARAUJO",{"$f":"\"***\"&MID(Planilha1!D141,4,9)&\"**\"","v":"***.747.683-**"},"TÉCNICO IND. E DE GESTÃO CORP. - ELÉTRICA",null,"HEMOBRÁS - FILIAL UNID. FABRIL (GOIANA)","CELETISTA","40 HORAS SEMANAIS","CONCURSO PÚBLICO","2014-02-21"]
[708,"FRANCISCO JOSE DANGELO PINTO",{"$f":"\"***\"&MID(Planilha1!D142,4,9)&\"**\"","v":"***.474.367-**"},null,"CONSELHEIRO FISCAL","NÃO SE APLICA","NÃO SE APLICA","SEM JORNADA","TERMO DE POSSE","2023-08-28"]
[556,"FRANCIVANDI COELHO BARBOSA",{"$f":"\"***\"&MID(Planilha1!D143,4,9)&\"**\"","v":"***.932.294-**"},"ANALISTA IND. DE HEMOD. E BIOTEC. - CONTROLE QUALIDADE - 2",null,"HEMOBRÁS - FILIAL UNID. FABRIL (GOIANA)","CELETISTA","40 HORAS SEMANAIS","CONCURSO PÚBLICO","2022-09-20"]
[102,"FRANKLIN CAVALCANTE DA SILVA SANTOS",{"$f":"\"***\"&MID(Planilha1!D144,4,9)&\"**\"","v":"***.783.564-**"},"ANALISTA DE GES. CORP. - CONTADOR I",null,"HEMOBRÁS - FILIAL UNID. ADM. (RECIFE)","CELETISTA","40 HORAS SEMANAIS","CONCURSO PÚBLICO","2011-02-23"]
[143,"FREDERICO BATISTA MONTEIRO",{"$f":"\"***\"&MID(Planilha1!D145,4,9)&\"**\"","v":"***.849.344-**"},"ESPECIALISTA EM PHB - FRAC. IND. PLASMA 1 - I","CHEFE DE SERVIÇO DE RELACIONAMENTOS COM A HEMORREDE","HEMOBRÁS - FILIAL UNID. ADM. (RECIFE)","CELETISTA","40 HORAS SEMANAIS","CONCURSO PÚBLICO","2011-04-06"]
[598,"FREDERICO LEITE GOUVEIA",{"$f":"\"***\"&MID(Planilha1!D146,4,9)&\"**\"","v":"***.657.464-**"},"ANALISTA IND. DE HEMOD. E BIOTEC. - FRACION. IND. PLASMA 2",null,"HEMOBRÁS - FILIAL UNID. FABRIL (GOIANA)","CELETISTA","40 HORAS SEMANAIS","CONCURSO PÚBLICO","2022-11-25"]
[413,"FREDERICO NICOLAS ANTONINO DE SOUZA",{"$f":"\"***\"&MID(Planilha1!D147,4,9)&\"**\"","v":"***.230.734-**"},"ANALISTA IND. DE HEMOD. E BIOTEC. - GARANTIA DA QUALIDADE",null,"HEMOBRÁS - FILIAL UNID. ADM. (RECIFE)","CELETISTA","40 HORAS SEMANAIS","CONCURSO PÚBLICO","2016-08-16"]
[666,"GABRIELA AMARAL DE SOUZA",{"$f":"\"***\"&MID(Planilha1!D148,4,9)&\"**\"","v":"***.094.524-**"},"ANALISTA IND. DE HEMOD. E BIOTEC. - FRACION. IND. PLASMA 1",null,"HEMOBRÁS - FILIAL UNID. FABRIL (GOIANA)","CELETISTA","40 HORAS SEMANAIS","CONCURSO PÚBLICO","2023-07-24"]
[308,"GALBA LOPES DE OLIVEIRA",{"$f":"\"***\"&MID(Planilha1!D149,4,9)&\"**\"","v":"***.786.964-**"},"ANALISTA ADM. DE ASSUNTOS CORP. - ORÇAMENTO E FINANÇAS",null,"HEMOBRÁS - FILIAL UNID. ADM. (RECIFE)","CELETISTA","40 HORAS SEMANAIS","CONCURSO PÚBLICO","2015-01-09"]
[298,"GEAN EWERTON SOARES DA SILVA",{"$f":"\"***\"&MID(Planilha1!D150,4,9)&\"**\"","v":"***.197.004-**"},"ASSISTENTE IND. E DE GESTÃO CORP - ASSISTENTE ADMINISTRATIVO",null,"HEMOBRÁS - FILIAL UNID. FABRIL (GOIANA)","CELETISTA","40 HORAS SEMANAIS","CONCURSO PÚBLICO","2014-12-05"]
[586,"GEIVERSON NEVES SENA",{"$f":"\"***\"&MID(Planilha1!D151,4,9)&\"**\"","v":"***.853.574-**"},"ANALISTA ADM. DE ASSUNTOS CORP. - CONTRATO",null,"HEMOBRÁS - FILIAL UNID. ADM. (RECIFE)","CELETISTA","40 HORAS SEMANAIS","CONCURSO PÚBLICO","2022-11-25"]
[104,"GERLANE NOGUEIRA DE CARVALHO MAGALHAES",{"$f":"\"***\"&MID(Planilha1!D152,4,9)&\"**\"","v":"***.930.594-**"},"ANALISTA DE GES. CORP. - COM. SOCIAL RELAÇÕES PUBLICAS I","ASSESSORA DE COMUNICAÇÃO, MARKETING E EVENTOS","HEMOBRÁS - FILIAL UNID. ADM. (RECIFE)","CELETISTA","40 HORAS SEMANAIS","CONCURSO PÚBLICO","2011-02-23"]
[335,"GETULIO LIRA DE FARIAS",{"$f":"\"***\"&MID(Planilha1!D153,4,9)&\"**\"","v":"***.426.314-**"},"TÉCNICO IND. E DE GESTÃO CORP. - AUTOMAÇÃO INDUSTRIAL",null,"HEMOBRÁS - FILIAL UNID. FABRIL (GOIANA)","CELETISTA","40 HORAS SEMANAIS","CONCURSO PÚBLICO","2015-04-13"]
[309,"GILSINELE SILVA SOUSA",{"$f":"\"***\"&MID(Planilha1!D154,4,9)&\"**\"","v":"***.365.474-**"},"ASSISTENTE IND. E DE GESTÃO CORP - ASSISTENTE ADMINISTRATIVO",null,"HEMOBRÁS - FILIAL UNID. FABRIL (GOIANA)","CELETISTA","40 HORAS SEMANAIS","CONCURSO PÚBLICO","2015-01-09"]
[420,"GIOVANNI FERNANDES DE ALBUQUERQUE JUNIOR",{"$f":"\"***\"&MID(Planilha1!D155,4,9)&\"**\"","v":"***.669.647-**"},null,"CHEFE DE GABINETE","HEMOBRÁS - FILIAL UNID. ADM. (RECIFE)","CELETISTA","40 HORAS SEMANAIS","CONCURSO PÚBLICO","2016-11-10"]
[460,"GLAUBEN TEIXEIRA DE CARVALHO",{"$f":"\"***\"&MID(Planilha1!D156,4,9)&\"**\"","v":"***.174.244-**"},null,"MEMBRO DO COMITÊ DE AUDITORIA","NÃO SE APLICA","NÃO SE APLICA","SEM JORNADA","TERMO DE POSSE","2018-10-01"]
[172,"GLAUBER BARROS DA SILVA SANTIAGO",{"$f":"\"***\"&MID(Planilha1!D157,4,9)&\"**\"","v":"***.699.044-**"},null,"ASSESSOR TÉCNICO ESPECIALIZADO","HEMOBRÁS - FILIAL UNID. FABRIL (GOIANA)","CELETISTA","40 HORAS SEMANAIS","PORTARIA ","2012-03-15"]
[352,"GLEMISON HONORATO DA SILVA",{"$f":"\"***\"&MID(Planilha1!D158,4,9)&\"**\"","v":"***.237.564-**"},"ASSISTENTE IND. E DE GESTÃO CORP - ASSISTENTE CONTÁBIL",null,"HEMOBRÁS - FILIAL UNID. ADM. (RECIFE)","CELETISTA","40 HORAS SEMANAIS","CONCURSO PÚBLICO","2015-06-16"]
[254,"GRACIELLA ALVES DOS SANTOS",{"$f":"\"***\"&MID(Planilha1!D159,4,9)&\"**\"","v":"***.722.904-**"},"ASSISTENTE IND. E DE GESTÃO CORP - ASSISTENTE CONTÁBIL",null,"HEMOBRÁS - FILIAL UNID. ADM. (RECIFE)","CELETISTA","40 HORAS SEMANAIS","CONCURSO PÚBLICO","2014-07-14"]
[725,"GRACIETE BATISTA ALVES",{"$f":"\"***\"&MID(Planilha1!D160,4,9)&\"**\"","v":"***.895.904-**"},"ANALISTA ADM. DE ASSUNTOS CORP. - DESENVOLVIMENTO DE PESSOAS",null,"HEMOBRÁS - FILIAL UNID. FABRIL (GOIANA)","CELETISTA","40 HORAS SEMANAIS","CONCURSO PÚBLICO","2024-01-10"]
[710,"GUILHERME LAUX",{"$f":"\"***\"&MID(Planilha1!D161,4,9)&\"**\"","v":"***.159.418-**"},null,"CONSELHEIRO ADMINISTRATIVO","NÃO SE APLICA","NÃO SE APLICA","SEM JORNADA","TERMO DE POSSE","2023-09-25"]
[256,"GUILHERME MAIA GADELHA",{"$f":"\"***\"&MID(Planilha1!D162,4,9)&\"**\"","v":"***.839.664-**"},"ANALISTA ADM. DE ASSUNTOS CORP. - CONTRATO",null,"HEMOBRÁS - FILIAL UNID. ADM. (RECIFE)","CELETISTA","40 HORAS SEMANAIS","CONCURSO PÚBLICO","2014-07-14"]
[87,"GUSTAVO CAVALCANTI SIMONI",{"$f":"\"***\"&MID(Planilha1!D163,4,9)&\"**\"","v":"***.133.904-**"},"ANALISTA ADM. DE ASSUNTOS CORP. - CONTADOR I","GERENTE DE ADMINISTRAÇÃO","HEMOBRÁS - FILIAL UNID. ADM. (RECIFE)","CELETISTA","40 HORAS SEMANAIS","CONCURSO PÚBLICO","2010-09-15"]
[370,"HECTOR GALDINO RODRIGUES",{"$f":"\"***\"&MID(Planilha1!D164,4,9)&\"**\"","v":"***.909.273-**"},"ANALISTA IND. DE HEMOD. E BIOTEC. - CONTROLE QUALIDADE - 1",null,"HEMOBRÁS - FILIAL UNID. FABRIL (GOIANA)","CELETISTA","40 HORAS SEMANAIS","CONCURSO PÚBLICO","2015-10-20"]
[168,"HELIO RICARDO FERREIRA DO COUTO",{"$f":"\"***\"&MID(Planilha1!D165,4,9)&\"**\"","v":"***.563.677-**"},"ANALISTA DE GES. CORP. - CONTADOR I",null,"HEMOBRÁS - FILIAL UNID. FABRIL (GOIANA)","CELETISTA","40 HORAS SEMANAIS","CONCURSO PÚBLICO","2010-01-26"]
[348,"HELOINA DE SOUSA FALCAO",{"$f":"\"***\"&MID(Planilha1!D166,4,9)&\"**\"","v":"***.823.574-**"},"TÉCNICO IND. E DE GESTÃO CORP. - TRIAGEM DO PLASMA",null,"HEMOBRÁS - FILIAL UNID. FABRIL (GOIANA)","CELETISTA","40 HORAS SEMANAIS","CONCURSO PÚBLICO","2015-06-16"]
[310,"HENRIQUE SALES GUEDES",{"$f":"\"***\"&MID(Planilha1!D167,4,9)&\"**\"","v":"***.432.488-**"},"ANALISTA ADM. DE ASSUNTOS CORP. - LOGÍSTICA FARMACÊUTICA",null,"HEMOBRÁS - FILIAL UNID. FABRIL (GOIANA)","CELETISTA","40 HORAS SEMANAIS","CONCURSO PÚBLICO","2015-01-09"]
[558,"HYWRE CESAR DE BRITO PINTO",{"$f":"\"***\"&MID(Planilha1!D168,4,9)&\"**\"","v":"***.291.174-**"},"ANALISTA IND. DE HEMOD. E BIOTEC. - CONTROLE QUALIDADE - 2",null,"HEMOBRÁS - FILIAL UNID. FABRIL (GOIANA)","CELETISTA","40 HORAS SEMANAIS","CONCURSO PÚBLICO","2022-09-20"]
[27,"ILCENY PEREIRA DE OLIVEIRA",{"$f":"\"***\"&MID(Planilha1!D169,4,9)&\"**\"","v":"***.110.121-**"},"ESPECIALISTA EM PHB - FRAC. IND. PLASMA 1 - I",null,"HEMOBRÁS - FILIAL UNID. ADM. (RECIFE)","CELETISTA","40 HORAS SEMANAIS","CONCURSO PÚBLICO","2009-06-26"]
[338,"INALDO BRITO NUNES",{"$f":"\"***\"&MID(Planilha1!D170,4,9)&\"**\"","v":"***.223.735-**"},"ASSISTENTE IND. E DE GESTÃO CORP - ASSISTENTE ADMINISTRATIVO",null,"HEMOBRÁS - FILIAL UNID. FABRIL (GOIANA)","CELETISTA","40 HORAS SEMANAIS","CONCURSO PÚBLICO","2015-04-16"]
[532,"INGRID MAIA MONTEIRO",{"$f":"\"***\"&MID(Planilha1!D171,4,9)&\"**\"","v":"***.257.874-**"},"ANALISTA ADM. DE ASSUNTOS CORP. - CONTRATO",null,"HEMOBRÁS - FILIAL UNID. ADM. (RECIFE)","CELETISTA","40 HORAS SEMANAIS","CONCURSO PÚBLICO","2022-05-03"]
[349,"ISABELLA SANTOS",{"$f":"\"***\"&MID(Planilha1!D172,4,9)&\"**\"","v":"***.458.264-**"},"ANALISTA IND. DE HEMOD. E BIOTEC. - FRACION. IND. PLASMA 2",null,"HEMOBRÁS - FILIAL UNID. FABRIL (GOIANA)","CELETISTA","40 HORAS SEMANAIS","CONCURSO PÚBLICO","2015-06-16"]
[601,"IVALDA XAVIER DE CARVALHO",{"$f":"\"***\"&MID(Planilha1!D173,4,9)&\"**\"","v":"***.106.014-**"},"ANALISTA IND. DE HEMOD. E BIOTEC. - FRACION. IND. PLASMA 2",null,"HEMOBRÁS - FILIAL UNID. FABRIL (GOIANA)","CELETISTA","40 HORAS SEMANAIS","CONCURSO PÚBLICO","2022-11-25"]
[663,"JADER MARTINS MARQUES",{"$f":"\"***\"&MID(Planilha1!D174,4,9)&\"**\"","v":"***.430.444-**"},"ANALISTA IND. DE HEMOD. E BIOTEC. - FRACION. IND. PLASMA 1",null,"HEMOBRÁS - FILIAL UNID. FABRIL (GOIANA)","CELETISTA","40 HORAS SEMANAIS","CONCURSO PÚBLICO","2023-07-24"]
[68,"JAMES ANDRADE DA ROCHA MENEZES",{"$f":"\"***\"&MID(Planilha1!D175,4,9)&\"**\"","v":"***.655.094-**"},"ANALISTA DE GES. CORP. - CONTADOR I",null,"HEMOBRÁS - FILIAL UNID. ADM. (RECIFE)","CELETISTA","40 HORAS SEMANAIS","CONCURSO PÚBLICO","2010-03-01"]
[405,"JAMILE DE MORAIS NASCIMENTO",{"$f":"\"***\"&MID(Planilha1!D176,4,9)&\"**\"","v":"***.686.255-**"},"ANALISTA ADM. DE ASSUNTOS CORP. - CONTRATO",null,"HEMOBRÁS - FILIAL UNID. ADM. (RECIFE)","CELETISTA","40 HORAS SEMANAIS","CONCURSO PÚBLICO","2016-07-14"]
[547,"JEAN CARLOS RAMALHO DE SA.",{"$f":"\"***\"&MID(Planilha1!D177,4,9)&\"**\"","v":"***.619.095-**"},"ANALISTA ADM. DE ASSUNTOS CORP. - LOGÍSTICA FARMACÊUTICA 2",null,"HEMOBRÁS - FILIAL UNID. FABRIL (GOIANA)","CELETISTA","40 HORAS SEMANAIS","CONCURSO PÚBLICO","2022-09-20"]
[674,"JESSICA REBOUCAS SILVA",{"$f":"\"***\"&MID(Planilha1!D178,4,9)&\"**\"","v":"***.718.035-**"},"ANALISTA IND. DE HEMOD. E BIOTEC. - FRACION. IND. PLASMA 1",null,"HEMOBRÁS - FILIAL UNID. FABRIL (GOIANA)","CELETISTA","40 HORAS SEMANAIS","CONCURSO PÚBLICO","2023-07-24"]
[713,"JOANA CARLA SANCHES RAMOS",{"$f":"\"***\"&MID(Planilha1!D179,4,9)&\"**\"","v":"***.904.637-**"},"ANALISTA IND. DE HEMOD. E BIOTEC. - ASSUNTOS REGULATÓRIOS",null,"HEMOBRÁS - FILIAL UNID. ADM. (RECIFE)","CELETISTA","40 HORAS SEMANAIS","CONCURSO PÚBLICO","2023-10-09"]
[719,"JOAO HENRIQUE DA SILVA",{"$f":"\"***\"&MID(Planilha1!D180,4,9)&\"**\"","v":"***.073.254-**"},"ASSISTENTE IND. E DE GESTÃO CORP - ASSISTENTE ADMINISTRATIVO",null,"HEMOBRÁS - FILIAL UNID. FABRIL (GOIANA)","CELETISTA","40 HORAS SEMANAIS","CONCURSO PÚBLICO","2023-10-09"]
[263,"JOAO MARIA ALVES DA CRUZ JUNIOR",{"$f":"\"***\"&MID(Planilha1!D181,4,9)&\"**\"","v":"***.844.454-**"},"TÉCNICO IND. E DE GESTÃO CORP. - AUTOMAÇÃO INDUSTRIAL",null,"HEMOBRÁS - FILIAL UNID. FABRIL (GOIANA)","CELETISTA","40 HORAS SEMANAIS","CONCURSO PÚBLICO","2014-07-14"]
[701,"JOAO VICTOR NASCIMENTO REIS",{"$f":"\"***\"&MID(Planilha1!D182,4,9)&\"**\"","v":"***.985.054-**"},"ANALISTA IND. DE HEMOD. E BIOTEC. - ENG. MECÂNICA",null,"HEMOBRÁS - FILIAL UNID. FABRIL (GOIANA)","CELETISTA","40 HORAS SEMANAIS","CONCURSO PÚBLICO","2023-08-23"]
[527,"JOAO VITOR LIMA DA SILVA",{"$f":"\"***\"&MID(Planilha1!D183,4,9)&\"**\"","v":"***.874.954-**"},"ANALISTA IND. DE HEMOD. E BIOTEC. - FRACION. IND. PLASMA 1",null,"HEMOBRÁS - FILIAL UNID. FABRIL (GOIANA)","CELETISTA","40 HORAS SEMANAIS","CONCURSO PÚBLICO","2022-03-17"]
[3,"JONAS LUIZ CABRAL DA SILVA",{"$f":"\"***\"&MID(Planilha1!D184,4,9)&\"**\"","v":"***.909.744-**"},"ANALISTA ADM. DE ASSUNTOS CORP. - CONTADOR I","CHEFE DE SERVIÇO DE CONTABLIDADE","HEMOBRÁS - FILIAL UNID. ADM. (RECIFE)","CELETISTA","40 HORAS SEMANAIS","CONCURSO PÚBLICO","2010-04-19"]
[714,"JORGE ANTONIO CHAVES DE OLIVEIRA",{"$f":"\"***\"&MID(Planilha1!D185,4,9)&\"**\"","v":"***.888.144-**"},"ANALISTA ADM. DE ASSUNTOS CORP. - LOGÍSTICA FARMACÊUTICA 1",null,"HEMOBRÁS - FILIAL UNID. ADM. (RECIFE)","CELETISTA","40 HORAS SEMANAIS","CONCURSO PÚBLICO","2023-10-09"]
[632,"JOSE CLEBERSON SANTOS SOARES",{"$f":"\"***\"&MID(Planilha1!D186,4,9)&\"**\"","v":"***.980.694-**"},"ANALISTA IND. DE HEMOD. E BIOTEC. - CONTROLE QUALIDADE - 2",null,"HEMOBRÁS - FILIAL UNID. FABRIL (GOIANA)","CELETISTA","40 HORAS SEMANAIS","CONCURSO PÚBLICO","2023-02-24"]
[699,"JOSE DIEGO SILVA NUNES",{"$f":"\"***\"&MID(Planilha1!D187,4,9)&\"**\"","v":"***.843.544-**"},"TÉCNICO IND. E DE GESTÃO CORP. - MECÂNICA",null,"HEMOBRÁS - FILIAL UNID. FABRIL (GOIANA)","CELETISTA","40 HORAS SEMANAIS","CONCURSO PÚBLICO","2023-08-23"]
[249,"JOSE EDSON CARDOSO DA COSTA",{"$f":"\"***\"&MID(Planilha1!D188,4,9)&\"**\"","v":"***.896.824-**"},"TÉCNICO IND. E DE GESTÃO CORP. - TRIAGEM DO PLASMA","ASSISTENTE TÉCNICO","HEMOBRÁS - FILIAL UNID. FABRIL (GOIANA)","CELETISTA","40 HORAS SEMANAIS","CONCURSO PÚBLICO","2014-05-12"]
[196,"JOSE EDUARDO SEVERINO MARTINS",{"$f":"\"***\"&MID(Planilha1!D189,4,9)&\"**\"","v":"***.141.721-**"},"ANALISTA IND. DE HEMOD. E BIOTEC. - FRACION. IND. PLASMA 2","ASSESSOR TÉCNICO ESPECIALIZADO","HEMOBRÁS - FILIAL UNID. ADM. (RECIFE)","CELETISTA","40 HORAS SEMANAIS","CONCURSO PÚBLICO","2013-04-18"]
[33,"JOSE MANOEL DO NASCIMENTO",{"$f":"\"***\"&MID(Planilha1!D190,4,9)&\"**\"","v":"***.084.314-**"},"ANALISTA DE GES. CORP. - ADMINISTRADOR I",null,"HEMOBRÁS - FILIAL UNID. ADM. (RECIFE)","CELETISTA","40 HORAS SEMANAIS","CONCURSO PÚBLICO","2009-07-10"]
[543,"JOSE MARIA ARAUJO CORREIA LIMA",{"$f":"\"***\"&MID(Planilha1!D191,4,9)&\"**\"","v":"***.998.014-**"},"ANALISTA ADM. DE ASSUNTOS CORP. - CONTABILIDADE",null,"HEMOBRÁS - FILIAL UNID. ADM. (RECIFE)","CELETISTA","40 HORAS SEMANAIS","CONCURSO PÚBLICO","2022-09-20"]
[693,"JOSE RAFAEL DO NASCIMENTO",{"$f":"\"***\"&MID(Planilha1!D192,4,9)&\"**\"","v":"***.244.534-**"},"ANALISTA IND. DE HEMOD. E BIOTEC. - FRACION. IND. PLASMA 2",null,"HEMOBRÁS - FILIAL UNID. FABRIL (GOIANA)","CELETISTA","40 HORAS SEMANAIS","CONCURSO PÚBLICO","2023-07-24"]
[627,"JOSE RODOLFO DA SILVA FILHO",{"$f":"\"***\"&MID(Planilha1!D193,4,9)&\"**\"","v":"***.348.324-**"},"APRENDIZ EM ASSISTENTE ADMINISTRATIVO",null,"HEMOBRÁS - FILIAL UNID. FABRIL (GOIANA)","CELETISTA",null,"SELEÇÃO","2023-02-06"]
[553,"JOSE WANDERLAN PONTES ESPINDOLA",{"$f":"\"***\"&MID(Planilha1!D194,4,9)&\"**\"","v":"***.758.424-**"},"ANALISTA IND. DE HEMOD. E BIOTEC. - CONTROLE QUALIDADE - 2",null,"HEMOBRÁS - FILIAL UNID. FABRIL (GOIANA)","CELETISTA","40 HORAS SEMANAIS","CONCURSO PÚBLICO","2022-09-20"]
[661,"JOSE WELLITHOM VITURINO DA SILVA",{"$f":"\"***\"&MID(Planilha1!D195,4,9)&\"**\"","v":"***.928.404-**"},"ANALISTA IND. DE HEMOD. E BIOTEC. - CONTROLE QUALIDADE - 2",null,"HEMOBRÁS - FILIAL UNID. FABRIL (GOIANA)","CELETISTA","40 HORAS SEMANAIS","CONCURSO PÚBLICO","2023-07-24"]
[574,"JULIA CURZEL DALLAGASPERINA",{"$f":"\"***\"&MID(Planilha1!D196,4,9)&\"**\"","v":"***.699.430-**"},"ANALISTA IND. DE HEMOD. E BIOTEC. - ENG. AMBIENTAL",null,"HEMOBRÁS - FILIAL UNID. FABRIL (GOIANA)","CELETISTA","40 HORAS SEMANAIS","CONCURSO PÚBLICO","2022-10-18"]
[684,"JULIANA DE OLIVEIRA TEIXEIRA",{"$f":"\"***\"&MID(Planilha1!D197,4,9)&\"**\"","v":"***.218.737-**"},"ANALISTA IND. DE HEMOD. E BIOTEC. - FRACION. IND. PLASMA 1",null,"HEMOBRÁS - FILIAL UNID. FABRIL (GOIANA)","CELETISTA","40 HORAS SEMANAIS","CONCURSO PÚBLICO","2023-07-24"]
[594,"JULIANA MENDES MOURA DE FIGUEIREDO",{"$f":"\"***\"&MID(Planilha1!D198,4,9)&\"**\"","v":"***.851.554-**"},"ANALISTA IND. DE HEMOD. E BIOTEC. - FRACION. IND. PLASMA 2",null,"HEMOBRÁS - FILIAL UNID. FABRIL (GOIANA)","CELETISTA","40 HORAS SEMANAIS","CONCURSO PÚBLICO","2022-11-25"]
[692,"JULIANA PAZ MAGALHAES",{"$f":"\"***\"&MID(Planilha1!D199,4,9)&\"**\"","v":"***.905.844-**"},"ANALISTA IND. DE HEMOD. E BIOTEC. - FRACION. IND. PLASMA 2",null,"HEMOBRÁS - FILIAL UNID. FABRIL (GOIANA)","CELETISTA","40 HORAS SEMANAIS","CONCURSO PÚBLICO","2023-07-24"]
[144,"JULIANA RODRIGUES CINTRA",{"$f":"\"***\"&MID(Planilha1!D200,4,9)&\"**\"","v":"***.808.638-**"},"ESPECIALISTA EM PHB - FRAC. IND. PLASMA 1 - I",null,"HEMOBRÁS - FILIAL UNID. FABRIL (GOIANA)","CELETISTA","40 HORAS SEMANAIS","CONCURSO PÚBLICO","2011-04-06"]
[625,"JULIENE DOS SANTOS DAVI MUNIZ",{"$f":"\"***\"&MID(Planilha1!D201,4,9)&\"**\"","v":"***.629.104-**"},"ANALISTA IND. DE HEMOD. E BIOTEC. - ENG. AUTOMAÇÃO E CONTROLE",null,"HEMOBRÁS - FILIAL UNID. FABRIL (GOIANA)","CELETISTA","40 HORAS SEMANAIS","CONCURSO PÚBLICO","2023-01-25"]
[602,"JULIETH MESQUITA LACERDA",{"$f":"\"***\"&MID(Planilha1!D202,4,9)&\"**\"","v":"***.667.023-**"},"ANALISTA IND. DE HEMOD. E BIOTEC. - FRACION. IND. PLASMA 2",null,"HEMOBRÁS - FILIAL UNID. FABRIL (GOIANA)","CELETISTA","40 HORAS SEMANAIS","CONCURSO PÚBLICO","2022-11-25"]
[589,"KALYNE AZEVEDO DE FRANCA",{"$f":"\"***\"&MID(Planilha1!D203,4,9)&\"**\"","v":"***.029.234-**"},"ANALISTA ADM. DE ASSUNTOS CORP. - PLANEJAMENTO ESTRATÉGICO",null,"HEMOBRÁS - FILIAL UNID. ADM. (RECIFE)","CELETISTA","40 HORAS SEMANAIS","CONCURSO PÚBLICO","2023-01-25"]
[669,"KAREN YASMIM PEREIRA DOS SANTOS AVELINO",{"$f":"\"***\"&MID(Planilha1!D204,4,9)&\"**\"","v":"***.580.524-**"},"ANALISTA IND. DE HEMOD. E BIOTEC. - FRACION. IND. PLASMA 2",null,"HEMOBRÁS - FILIAL UNID. FABRIL (GOIANA)","CELETISTA","40 HORAS SEMANAIS","CONCURSO PÚBLICO","2023-07-24"]
[565,"KARLLINY WALESKA DA SILVA LIMA",{"$f":"\"***\"&MID(Planilha1!D205,4,9)&\"**\"","v":"***.641.614-**"},"ANALISTA IND. DE HEMOD. E BIOTEC. - GARANTIA DA QUALIDADE 2",null,"HEMOBRÁS - FILIAL UNID. FABRIL (GOIANA)","CELETISTA","40 HORAS SEMANAIS","CONCURSO PÚBLICO","2022-09-20"]
[550,"KATIA RAQUEL DE ALMEIDA OLIVEIRA",{"$f":"\"***\"&MID(Planilha1!D206,4,9)&\"**\"","v":"***.586.344-**"},"ANALISTA IND. DE HEMOD. E BIOTEC. - GARANTIA DA QUALIDADE 2",null,"HEMOBRÁS - FILIAL UNID. FABRIL (GOIANA)","CELETISTA","40 HORAS SEMANAIS","CONCURSO PÚBLICO","2022-09-20"]
[728,"KAUANE NAYARA BAHR LEDEBUHR",{"$f":"\"***\"&MID(Planilha1!D207,4,9)&\"**\"","v":"***8811059**"},"ANALISTA IND. DE HEMOD. E BIOTEC. - FRACION. IND. PLASMA 1",null,"HEMOBRÁS - FILIAL UNID. FABRIL (GOIANA)","CELETISTA","40 HORAS SEMANAIS","CONCURSO PÚBLICO","2024-01-10"]
[446,"KLEBSON MACEDO DA SILVA",{"$f":"\"***\"&MID(Planilha1!D208,4,9)&\"**\"","v":"***.359.454-**"},"TÉCNICO IND. E DE GESTÃO CORP. - REFRIGERAÇÃO",null,"HEMOBRÁS - FILIAL UNID. FABRIL (GOIANA)","CELETISTA","40 HORAS SEMANAIS","CONCURSO PÚBLICO","2018-04-02"]
[667,"LAIANNE CARLA BATISTA ALENCAR",{"$f":"\"***\"&MID(Planilha1!D209,4,9)&\"**\"","v":"***.313.103-**"},"ANALISTA IND. DE HEMOD. E BIOTEC. - FRACION. IND. PLASMA 2",null,"HEMOBRÁS - FILIAL UNID. FABRIL (GOIANA)","CELETISTA","40 HORAS SEMANAIS","CONCURSO PÚBLICO","2023-07-24"]
[286,"LAUDEMIR ERNESTO DA SILVA",{"$f":"\"***\"&MID(Planilha1!D210,4,9)&\"**\"","v":"***.422.364-**"},"TÉCNICO IND. E DE GESTÃO CORP. - REFRIGERAÇÃO",null,"HEMOBRÁS - FILIAL UNID. FABRIL (GOIANA)","CELETISTA","40 HORAS SEMANAIS","CONCURSO PÚBLICO","2014-08-04"]
[35,"LAURA BARRETO CARNEIRO",{"$f":"\"***\"&MID(Planilha1!D211,4,9)&\"**\"","v":"***.685.661-**"},"ESPECIALISTA EM PHB - CONTROLE QUALIDADE - I",null,"HEMOBRÁS - FILIAL UNID. FABRIL (GOIANA)","CELETISTA","40 HORAS SEMANAIS","CONCURSO PÚBLICO","2009-06-23"]
[371,"LAURA LICIA MARCOS DA COSTA",{"$f":"\"***\"&MID(Planilha1!D212,4,9)&\"**\"","v":"***.124.093-**"},"ANALISTA IND. DE HEMOD. E BIOTEC. - ARMAZ E DISTRIB DE MEDIC",null,"HEMOBRÁS - FILIAL UNID. ADM. (RECIFE)","CELETISTA","40 HORAS SEMANAIS","CONCURSO PÚBLICO","2015-10-20"]
[707,"LEANDRO PINHEIRO SAFATLE",{"$f":"\"***\"&MID(Planilha1!D213,4,9)&\"**\"","v":"***.746.591-**"},null,"CONSELHEIRO FISCAL","NÃO SE APLICA","NÃO SE APLICA","SEM JORNADA","TERMO DE POSSE","2023-08-28"]
[417,"LEONARDO DE ALBUQUERQUE DANTAS",{"$f":"\"***\"&MID(Planilha1!D214,4,9)&\"**\"","v":"***.923.334-**"},"ANALISTA IND. DE HEMOD. E BIOTEC. - PLASMA E HEMOCOMPONENTES","CHEFE DE SERVIÇO DE GESTÃO INTERNA DO PLASMA ","HEMOBRÁS - FILIAL UNID. FABRIL (GOIANA)","CELETISTA","40 HORAS SEMANAIS","CONCURSO PÚBLICO","2016-09-15"]
[484,"LEONARDO MOURA VILELA",{"$f":"\"***\"&MID(Planilha1!D215,4,9)&\"**\"","v":"***.045.541-**"},null,"CONSELHEIRO ADMINISTRATIVO","NÃO SE APLICA","NÃO SE APLICA","SEM JORNADA","TERMO DE POSSE","2019-07-23"]
[265,"LEONARDO PINHEIRO LANDIM",{"$f":"\"***\"&MID(Planilha1!D216,4,9)&\"**\"","v":"***.432.513-**"},"ANALISTA IND. DE HEMOD. E BIOTEC. - GARANTIA DA QUALIDADE",null,"HEMOBRÁS - FILIAL UNID. FABRIL (GOIANA)","CELETISTA","40 HORAS SEMANAIS","CONCURSO PÚBLICO","2014-07-14"]
[232,"LETICIA AGRA MONTEIRO",{"$f":"\"***\"&MID(Planilha1!D217,4,9)&\"**\"","v":"***.249.294-**"},"ANALISTA IND. DE HEMOD. E BIOTEC. - FRACION. IND. PLASMA 2",null,"HEMOBRÁS - FILIAL UNID. FABRIL (GOIANA)","CELETISTA","40 HORAS SEMANAIS","CONCURSO PÚBLICO","2014-02-21"]
[603,"LETICIA DA COSTA ARAUJO",{"$f":"\"***\"&MID(Planilha1!D218,4,9)&\"**\"","v":"***.314.803-**"},"ANALISTA IND. DE HEMOD. E BIOTEC. - FRACION. IND. PLASMA 2",null,"HEMOBRÁS - FILIAL UNID. FABRIL (GOIANA)","CELETISTA","40 HORAS SEMANAIS","CONCURSO PÚBLICO","2022-11-25"]
[301,"LIDIANE REBECA PEREIRA DE LIMA",{"$f":"\"***\"&MID(Planilha1!D219,4,9)&\"**\"","v":"***.562.544-**"},"ASSISTENTE IND. E DE GESTÃO CORP - ASSISTENTE ADMINISTRATIVO",null,"HEMOBRÁS - FILIAL UNID. ADM. (RECIFE)","CELETISTA","40 HORAS SEMANAIS","CONCURSO PÚBLICO","2014-12-05"]
[648,"LIDIANY APARECIDA COSTA FREIRE",{"$f":"\"***\"&MID(Planilha1!D220,4,9)&\"**\"","v":"***.815.094-**"},"ANALISTA IND. DE HEMOD. E BIOTEC. - GARANTIA DA QUALIDADE 2",null,"HEMOBRÁS - FILIAL UNID. FABRIL (GOIANA)","CELETISTA","40 HORAS SEMANAIS","CONCURSO PÚBLICO","2023-04-25"]
[715,"LILIANA DE MELO MACHADO BEHAR",{"$f":"\"***\"&MID(Planilha1!D221,4,9)&\"**\"","v":"***.111.634-**"},"ANALISTA ADM. DE ASSUNTOS CORP. - DESENVOLVIMENTO DE PESSOAS",null,"HEMOBRÁS - FILIAL UNID. FABRIL (GOIANA)","CELETISTA","40 HORAS SEMANAIS","CONCURSO PÚBLICO","2023-10-09"]
[448,"LIVIA MARIA BARBOSA REYNAUX",{"$f":"\"***\"&MID(Planilha1!D222,4,9)&\"**\"","v":"***.665.464-**"},"ANALISTA IND. DE HEMOD. E BIOTEC. - CONTROLE QUALIDADE - 2",null,"HEMOBRÁS - FILIAL UNID. FABRIL (GOIANA)","CELETISTA","40 HORAS SEMANAIS","CONCURSO PÚBLICO","2018-04-19"]
[441,"LIVIA MARIA SOUZA DE OLIVEIRA",{"$f":"\"***\"&MID(Planilha1!D223,4,9)&\"**\"","v":"***.267.544-**"},"ANALISTA ADM. DE ASSUNTOS CORP. - ASSESSORIA ADMINISTRATIVA",null,"HEMOBRÁS - FILIAL UNID. ADM. (RECIFE)","CELETISTA","40 HORAS SEMANAIS","CONCURSO PÚBLICO","2018-01-17"]
[520,"LUANA CAMILLA CORDEIRO BRAZ",{"$f":"\"***\"&MID(Planilha1!D224,4,9)&\"**\"","v":"***.885.594-**"},"ANALISTA IND. DE HEMOD. E BIOTEC. - FRACION. IND. PLASMA 1",null,"HEMOBRÁS - FILIAL UNID. FABRIL (GOIANA)","CELETISTA","40 HORAS SEMANAIS","CONCURSO PÚBLICO","2022-03-17"]
[521,"LUCAS ALECRIM AMORIM VIANA",{"$f":"\"***\"&MID(Planilha1!D225,4,9)&\"**\"","v":"***.412.335-**"},"ANALISTA IND. DE HEMOD. E BIOTEC. - FRACION. IND. PLASMA 1",null,"HEMOBRÁS - FILIAL UNID. FABRIL (GOIANA)","CELETISTA","40 HORAS SEMANAIS","CONCURSO PÚBLICO","2022-03-17"]
[712,"LUCAS ALEXANDRE SILVA",{"$f":"\"***\"&MID(Planilha1!D226,4,9)&\"**\"","v":"***.611.344-**"},"TÉCNICO IND. E DE GESTÃO CORP. - SEGURANÇA DO TRABALHO",null,"HEMOBRÁS - FILIAL UNID. FABRIL (GOIANA)","CELETISTA","40 HORAS SEMANAIS","CONCURSO PÚBLICO","2023-10-09"]
[683,"LUCAS ALISON DO NASCIMENTO SANTOS",{"$f":"\"***\"&MID(Planilha1!D227,4,9)&\"**\"","v":"***.414.924-**"},"ANALISTA IND. DE HEMOD. E BIOTEC. - FRACION. IND. PLASMA 1",null,"HEMOBRÁS - FILIAL UNID. FABRIL (GOIANA)","CELETISTA","40 HORAS SEMANAIS","CONCURSO PÚBLICO","2023-07-24"]
[213,"LUCAS RICCI BIANCO",{"$f":"\"***\"&MID(Planilha1!D228,4,9)&\"**\"","v":"***.819.314-**"},"ESPECIALISTA EM PHB - FRAC. IND. PLASMA 1 - I","GERENTE DE PRODUÇÃO","HEMOBRÁS - FILIAL UNID. FABRIL (GOIANA)","CELETISTA","40 HORAS SEMANAIS","CONCURSO PÚBLICO","2014-02-20"]
[402,"LUCIANA TRANQUILINO DE MELO",{"$f":"\"***\"&MID(Planilha1!D229,4,9)&\"**\"","v":"***.734.954-**"},"ANALISTA ADM. DE ASSUNTOS CORP. - ANALISTA JURÍDICO",null,"HEMOBRÁS - FILIAL UNID. ADM. (RECIFE)","CELETISTA","40 HORAS SEMANAIS","CONCURSO PÚBLICO","2016-06-06"]
[658,"LUDMILLA SANTOS SILVA DE MESQUITA",{"$f":"\"***\"&MID(Planilha1!D230,4,9)&\"**\"","v":"***.140.273-**"},"ANALISTA IND. DE HEMOD. E BIOTEC. - CONTROLE QUALIDADE - 2",null,"HEMOBRÁS - FILIAL UNID. FABRIL (GOIANA)","CELETISTA","40 HORAS SEMANAIS","CONCURSO PÚBLICO","2023-07-24"]
[333,"LUIZ CARLOS DO NASCIMENTO",{"$f":"\"***\"&MID(Planilha1!D231,4,9)&\"**\"","v":"***.195.934-**"},"ASSISTENTE IND. E DE GESTÃO CORP - TÉC. EM CONTABILIDADE I",null,"HEMOBRÁS - FILIAL UNID. ADM. (RECIFE)","CELETISTA","40 HORAS SEMANAIS","CONCURSO PÚBLICO","2015-04-13"]
[477,"LUIZ EDUARDO BEZERRA SILVA",{"$f":"\"***\"&MID(Planilha1!D232,4,9)&\"**\"","v":"***.108.444-**"},null,"AUDITOR GERAL","HEMOBRÁS - FILIAL UNID. ADM. (RECIFE)","ESTATUTÁRIO","40 HORAS SEMANAIS","RESOLUÇÃO","2019-03-07","CONTROLADORIA-GERAL DA UNIÃO (CGU)"]
[414,"LUIZ FELIPE LINS DANTAS",{"$f":"\"***\"&MID(Planilha1!D233,4,9)&\"**\"","v":"***.011.744-**"},"ANALISTA ADM. DE ASSUNTOS CORP. - COMPRAS NAC. E INTERNAC.","CHEFE DE SERVIÇO DE GESTÃO DE SUPRIMENTOS E ATIVIDADES ADMINISTRATIVAS","HEMOBRÁS - FILIAL UNID. ADM. (RECIFE)","CELETISTA","40 HORAS SEMANAIS","CONCURSO PÚBLICO","2016-08-16"]
[664,"LUIZ FILIPE TEIXEIRA NUNES",{"$f":"\"***\"&MID(Planilha1!D234,4,9)&\"**\"","v":"***.709.424-**"},"ANALISTA IND. DE HEMOD. E BIOTEC. - FRACION. IND. PLASMA 1",null,"HEMOBRÁS - FILIAL UNID. FABRIL (GOIANA)","CELETISTA","40 HORAS SEMANAIS","CONCURSO PÚBLICO","2023-07-24"]
[569,"LUIZA BEATRIZ DE MEDEIROS SANTOS",{"$f":"\"***\"&MID(Planilha1!D235,4,9)&\"**\"","v":"***.809.684-**"},"ANALISTA IND. DE HEMOD. E BIOTEC. - GARANTIA DA QUALIDADE 2",null,"HEMOBRÁS - FILIAL UNID. FABRIL (GOIANA)","CELETISTA","40 HORAS SEMANAIS","CONCURSO PÚBLICO","2022-09-20"]
[649,"MAIRA LUDNA DUARTE",{"$f":"\"***\"&MID(Planilha1!D236,4,9)&\"**\"","v":"***.959.744-**"},"ANALISTA IND. DE HEMOD. E BIOTEC. - GARANTIA DA QUALIDADE 2",null,"HEMOBRÁS - FILIAL UNID. FABRIL (GOIANA)","CELETISTA","40 HORAS SEMANAIS","CONCURSO PÚBLICO","2023-04-25"]
[628,"MANOELA BRASIL FERNANDES DE ALBUQUERQUE",{"$f":"\"***\"&MID(Planilha1!D237,4,9)&\"**\"","v":"***.232.504-**"},null,"ASSISTENTE TÉCNICO ESPECIALIZADO","HEMOBRÁS - FILIAL UNID. ADM. (RECIFE)","CELETISTA","40 HORAS SEMANAIS","CONCURSO PÚBLICO","2023-02-15"]
[672,"MARCELO FRANCISCO GALDINO DA SILVA",{"$f":"\"***\"&MID(Planilha1!D238,4,9)&\"**\"","v":"***.284.614-**"},"ANALISTA IND. DE HEMOD. E BIOTEC. - FRACION. IND. PLASMA 2",null,"HEMOBRÁS - FILIAL UNID. FABRIL (GOIANA)","CELETISTA","40 HORAS SEMANAIS","CONCURSO PÚBLICO","2023-07-24"]
[260,"MARCELO GOES LIBERAL FILHO",{"$f":"\"***\"&MID(Planilha1!D239,4,9)&\"**\"","v":"***.550.664-**"},"TÉCNICO IND. E DE GESTÃO CORP. - SEGURANÇA DO TRABALHO",null,"HEMOBRÁS - FILIAL UNID. ADM. (RECIFE)","CELETISTA","40 HORAS SEMANAIS","CONCURSO PÚBLICO","2014-07-14"]
[653,"MARCIA APARECIDA DA SILVA",{"$f":"\"***\"&MID(Planilha1!D240,4,9)&\"**\"","v":"***.323.796-**"},"ANALISTA IND. DE HEMOD. E BIOTEC. - ASSUNTOS REGULATÓRIOS",null,"HEMOBRÁS - FILIAL UNID. ADM. (RECIFE)","CELETISTA","40 HORAS SEMANAIS","CONCURSO PÚBLICO","2023-07-24"]
[389,"MARCIA RODRIGUES VIANA SCHIPPERS",{"$f":"\"***\"&MID(Planilha1!D241,4,9)&\"**\"","v":"***.600.713-**"},"ANALISTA ADM. DE ASSUNTOS CORP. - COMPRAS NAC. E INTERNAC.",null,"HEMOBRÁS - FILIAL UNID. ADM. (RECIFE)","CELETISTA","40 HORAS SEMANAIS","CONCURSO PÚBLICO","2016-02-16"]
[259,"MARCIO VAZ DE OLIVEIRA",{"$f":"\"***\"&MID(Planilha1!D242,4,9)&\"**\"","v":"***.479.814-**"},"ASSISTENTE IND. E DE GESTÃO CORP - ASSISTENTE ADMINISTRATIVO",null,"HEMOBRÁS - FILIAL UNID. FABRIL (GOIANA)","CELETISTA","40 HORAS SEMANAIS","CONCURSO PÚBLICO","2014-07-14"]
[610,"MARCOPOLO DA SILVA MARINHO",{"$f":"\"***\"&MID(Planilha1!D243,4,9)&\"**\"","v":"***.726.774-**"},"ANALISTA ADM. DE ASSUNTOS CORP. - PLANEJAMENTO ESTRATÉGICO",null,"HEMOBRÁS - FILIAL UNID. ADM. (RECIFE)","CELETISTA","40 HORAS SEMANAIS","CONCURSO PÚBLICO","2023-01-25"]
[247,"MARCOS LUIZ DE OLIVEIRA FILHO",{"$f":"\"***\"&MID(Planilha1!D244,4,9)&\"**\"","v":"***.208.534-**"},"ANALISTA DE GES. CORP. - ORÇAMENTO E FINANÇAS",null,"HEMOBRÁS - FILIAL UNID. FABRIL (GOIANA)","CELETISTA","40 HORAS SEMANAIS","CONCURSO PÚBLICO","2014-04-22"]
[694,"MARIA FERNANDA RAMOS COELHO",{"$f":"\"***\"&MID(Planilha1!D245,4,9)&\"**\"","v":"***.455.334-**"},null,"CONSELHEIRO ADMINISTRATIVO","NÃO SE APLICA","NÃO SE APLICA","SEM JORNADA","TERMO DE POSSE","2023-07-13"]
[626,"MARIA JULIA RODRIGUES ALMEIDA",{"$f":"\"***\"&MID(Planilha1!D246,4,9)&\"**\"","v":"***.336.894-**"},"APRENDIZ EM ASSISTENTE ADMINISTRATIVO",null,"HEMOBRÁS - FILIAL UNID. FABRIL (GOIANA)","CELETISTA",null,"SELEÇÃO","2023-02-06"]
[587,"MARIA LUCIA MAIA DE FREITAS",{"$f":"\"***\"&MID(Planilha1!D247,4,9)&\"**\"","v":"***.376.104-**"},"ANALISTA ADM. DE ASSUNTOS CORP. - DESENVOLVIMENTO DE PESSOAS",null,"HEMOBRÁS - FILIAL UNID. FABRIL (GOIANA)","CELETISTA","40 HORAS SEMANAIS","CONCURSO PÚBLICO","2022-11-25"]
[523,"MARIA LUIZA CAVALCANTI LUCENA",{"$f":"\"***\"&MID(Planilha1!D248,4,9)&\"**\"","v":"***.528.984-**"},"ANALISTA IND. DE HEMOD. E BIOTEC. - FRACION. IND. PLASMA 1",null,"HEMOBRÁS - FILIAL UNID. FABRIL (GOIANA)","CELETISTA","40 HORAS SEMANAIS","CONCURSO PÚBLICO","2022-03-17"]
[395,"MARIA MENDES DA SILVA",{"$f":"\"***\"&MID(Planilha1!D249,4,9)&\"**\"","v":"***.265.864-**"},null,"ASSISTENTE TÉCNICO","HEMOBRÁS - FILIAL UNID. ADM. (RECIFE)","CELETISTA","40 HORAS SEMANAIS","CONCURSO PÚBLICO","2015-03-10"]
[372,"MARIA SUELY DE LIMA",{"$f":"\"***\"&MID(Planilha1!D250,4,9)&\"**\"","v":"***.384.294-**"},"ANALISTA ADM. DE ASSUNTOS CORP. - CONTRATO",null,"HEMOBRÁS - FILIAL UNID. ADM. (RECIFE)","CELETISTA","40 HORAS SEMANAIS","CONCURSO PÚBLICO","2015-10-20"]
[721,"MARIANA MAZZA GUIMARAES DE ARAUJO",{"$f":"\"***\"&MID(Planilha1!D251,4,9)&\"**\"","v":"***.441.104-**"},"ANALISTA ADM. DE ASSUNTOS CORP. - JORNALISMO",null,"HEMOBRÁS - FILIAL UNID. ADM. (RECIFE)","CELETISTA","40 HORAS SEMANAIS","CONCURSO PÚBLICO","2024-01-10"]
[662,"MARIE CLAIRE CARNEIRO ALBUQUERQUE",{"$f":"\"***\"&MID(Planilha1!D252,4,9)&\"**\"","v":"***.116.184-**"},"ANALISTA IND. DE HEMOD. E BIOTEC. - CONTROLE QUALIDADE - 2",null,"HEMOBRÁS - FILIAL UNID. FABRIL (GOIANA)","CELETISTA","40 HORAS SEMANAIS","CONCURSO PÚBLICO","2023-07-24"]
[214,"MARILIA BARBOSA DO NASCIMENTO",{"$f":"\"***\"&MID(Planilha1!D253,4,9)&\"**\"","v":"***.096.624-**"},"ESPECIALISTA EM PHB - CONTROLE QUALIDADE - I",null,"HEMOBRÁS - FILIAL UNID. FABRIL (GOIANA)","CELETISTA","40 HORAS SEMANAIS","CONCURSO PÚBLICO","2014-02-20"]
[678,"MARILIA EVELLYN DE SANTANA DIAS",{"$f":"\"***\"&MID(Planilha1!D254,4,9)&\"**\"","v":"***.457.044-**"},"ANALISTA IND. DE HEMOD. E BIOTEC. - FRACION. IND. PLASMA 2",null,"HEMOBRÁS - FILIAL UNID. FABRIL (GOIANA)","CELETISTA","40 HORAS SEMANAIS","CONCURSO PÚBLICO","2023-07-24"]
[629,"MARILIA KALINNE DA SILVA TORRES",{"$f":"\"***\"&MID(Planilha1!D255,4,9)&\"**\"","v":"***.593.894-**"},"TÉCNICO IND. E DE GESTÃO CORP. - TRIAGEM DO PLASMA",null,"HEMOBRÁS - FILIAL UNID. FABRIL (GOIANA)","CELETISTA","40 HORAS SEMANAIS","CONCURSO PÚBLICO","2023-03-07"]
[233,"MARILIA MARQUES DA SILVA ANDRADE",{"$f":"\"***\"&MID(Planilha1!D256,4,9)&\"**\"","v":"***.654.384-**"},"TÉCNICO IND. E DE GESTÃO CORP. - TRIAGEM DO PLASMA",null,"HEMOBRÁS - FILIAL UNID. FABRIL (GOIANA)","CELETISTA","40 HORAS SEMANAIS","CONCURSO PÚBLICO","2014-02-21"]
[442,"MARINA ROCHA ALVES DE ANDRADE",{"$f":"\"***\"&MID(Planilha1!D257,4,9)&\"**\"","v":"***.159.975-**"},"ANALISTA IND. DE HEMOD. E BIOTEC. - PLASMA E HEMOCOMPONENTES",null,"HEMOBRÁS - FILIAL UNID. FABRIL (GOIANA)","CELETISTA","40 HORAS SEMANAIS","CONCURSO PÚBLICO","2018-01-17"]
[189,"MARINETE CANDIDO DE GOUVEIA",{"$f":"\"***\"&MID(Planilha1!D258,4,9)&\"**\"","v":"***.165.504-**"},null,"CHEFE DE SERVIÇO DE DESENVOLVIMENTO DE PESSOAS","HEMOBRÁS - FILIAL UNID. FABRIL (GOIANA)","CELETISTA","40 HORAS SEMANAIS","PORTARIA ","2013-01-10"]
[656,"MARLON ANDERSON CESAR DA SILVA",{"$f":"\"***\"&MID(Planilha1!D259,4,9)&\"**\"","v":"***.126.834-**"},"ANALISTA ADM. DE ASSUNTOS CORP. - TECNOLOGIA DA INFORMAÇÃO",null,"HEMOBRÁS - FILIAL UNID. FABRIL (GOIANA)","CELETISTA","40 HORAS SEMANAIS","CONCURSO PÚBLICO","2023-07-24"]
[403,"MARLUCE ARAUJO DE LUNA",{"$f":"\"***\"&MID(Planilha1!D260,4,9)&\"**\"","v":"***.221.474-**"},"ANALISTA ADM. DE ASSUNTOS CORP. - AUDITORIA INTERNA",null,"HEMOBRÁS - FILIAL UNID. ADM. (RECIFE)","CELETISTA","40 HORAS SEMANAIS","CONCURSO PÚBLICO","2016-06-06"]
[445,"MATEUS PEREIRA SALVATORI",{"$f":"\"***\"&MID(Planilha1!D261,4,9)&\"**\"","v":"***.906.020-**"},"ANALISTA IND. DE HEMOD. E BIOTEC. - CONTROLE QUALIDADE - 1",null,"HEMOBRÁS - FILIAL UNID. FABRIL (GOIANA)","CELETISTA","40 HORAS SEMANAIS","CONCURSO PÚBLICO","2018-03-07"]
[577,"MATHEUS RODRIGUES SILVA",{"$f":"\"***\"&MID(Planilha1!D262,4,9)&\"**\"","v":"***.844.014-**"},"ANALISTA ADM. DE ASSUNTOS CORP. - ORÇAMENTO E FINANÇAS",null,"HEMOBRÁS - FILIAL UNID. ADM. (RECIFE)","CELETISTA","40 HORAS SEMANAIS","CONCURSO PÚBLICO","2022-10-18"]
[517,"MAURICIO BARROS OTTONI",{"$f":"\"***\"&MID(Planilha1!D263,4,9)&\"**\"","v":"***.959.571-**"},null,"GERENTE DE TECNOLOGIA DE INFORMAÇÃO E COMUNICAÇÃO","HEMOBRÁS - FILIAL UNID. FABRIL (GOIANA)","CELETISTA","40 HORAS SEMANAIS","PORTARIA ","2022-01-03"]
[691,"MAX FELIPPE NERI LINS",{"$f":"\"***\"&MID(Planilha1!D264,4,9)&\"**\"","v":"***.165.024-**"},"ANALISTA IND. DE HEMOD. E BIOTEC. - FRACION. IND. PLASMA 2",null,"HEMOBRÁS - FILIAL UNID. FABRIL (GOIANA)","CELETISTA","40 HORAS SEMANAIS","CONCURSO PÚBLICO","2023-07-24"]
[215,"MELISSA PAPALEO ROCHA DE LIMA",{"$f":"\"***\"&MID(Planilha1!D265,4,9)&\"**\"","v":"***.988.364-**"},"ESPECIALISTA EM PHB - PLASMA E HEMOCOMPONENTES ","GERENTE DE PRODUTOS E SUPRIMENTOS FARMACÊUTICOS","HEMOBRÁS - FILIAL UNID. ADM. (RECIFE)","CELETISTA","40 HORAS SEMANAIS","CONCURSO PÚBLICO","2014-02-20"]
[285,"MESSIAS LIMA DA SILVA",{"$f":"\"***\"&MID(Planilha1!D266,4,9)&\"**\"","v":"***.064.234-**"},"TÉCNICO IND. E DE GESTÃO CORP. - ELÉTRICA",null,"HEMOBRÁS - FILIAL UNID. FABRIL (GOIANA)","CELETISTA","40 HORAS SEMANAIS","CONCURSO PÚBLICO","2014-08-04"]
[645,"MIGUEL WILSON REGUEIRA RIBEIRO",{"$f":"\"***\"&MID(Planilha1!D267,4,9)&\"**\"","v":"***.663.804-**"},"ANALISTA IND. DE HEMOD. E BIOTEC. - CONTROLE QUALIDADE - 2",null,"HEMOBRÁS - FILIAL UNID. FABRIL (GOIANA)","CELETISTA","40 HORAS SEMANAIS","CONCURSO PÚBLICO","2023-05-17"]
[595,"MILENA TEREZA TORRES DO COUTO",{"$f":"\"***\"&MID(Planilha1!D268,4,9)&\"**\"","v":"***.402.984-**"},"ANALISTA IND. DE HEMOD. E BIOTEC. - FRACION. IND. PLASMA 2",null,"HEMOBRÁS - FILIAL UNID. FABRIL (GOIANA)","CELETISTA","40 HORAS SEMANAIS","CONCURSO PÚBLICO","2022-11-25"]
[346,"MIRELLA MUZZI DE LIMA",{"$f":"\"***\"&MID(Planilha1!D269,4,9)&\"**\"","v":"***.909.704-**"},"ANALISTA ADM. DE ASSUNTOS CORP. - LICITAÇÃO E CONTRATOS","ASSISTENTE TÉCNICO ESPECIALIZADO ","HEMOBRÁS - FILIAL UNID. ADM. (RECIFE)","CELETISTA","40 HORAS SEMANAIS","CONCURSO PÚBLICO","2015-06-16"]
[438,"MIRELLA SOARES DA SILVA BEZERRA",{"$f":"\"***\"&MID(Planilha1!D270,4,9)&\"**\"","v":"***.848.714-**"},"ANALISTA IND. DE HEMOD. E BIOTEC. - ENG. AMBIENTAL",null,"HEMOBRÁS - FILIAL UNID. FABRIL (GOIANA)","CELETISTA","40 HORAS SEMANAIS","CONCURSO PÚBLICO","2018-01-15"]
[457,"MONICA ASFORA MOREIRA",{"$f":"\"***\"&MID(Planilha1!D271,4,9)&\"**\"","v":"***.055.394-**"},null,"SECRETÁRIA EXECUTIVA","HEMOBRÁS - FILIAL UNID. ADM. (RECIFE)","CELETISTA","40 HORAS SEMANAIS","PORTARIA ","2018-09-04"]
[690,"MONICA CORREIA SANTOS",{"$f":"\"***\"&MID(Planilha1!D272,4,9)&\"**\"","v":"***.804.474-**"},"ANALISTA IND. DE HEMOD. E BIOTEC. - FRACION. IND. PLASMA 2",null,"HEMOBRÁS - FILIAL UNID. FABRIL (GOIANA)","CELETISTA","40 HORAS SEMANAIS","CONCURSO PÚBLICO","2023-07-24"]
[720,"MONIELLY MIRELLY LEITE DA SILVA",{"$f":"\"***\"&MID(Planilha1!D273,4,9)&\"**\"","v":"***.877.224-**"},"APRENDIZ EM ASSISTENTE ADMINISTRATIVO",null,"HEMOBRÁS - FILIAL UNID. ADM. (RECIFE)","CELETISTA",null,"SELEÇÃO","2023-11-13"]
[555,"MYLENA FELIX DE LIRA",{"$f":"\"***\"&MID(Planilha1!D274,4,9)&\"**\"","v":"***.656.134-**"},"ANALISTA IND. DE HEMOD. E BIOTEC. - CONTROLE QUALIDADE - 2",null,"HEMOBRÁS - FILIAL UNID. FABRIL (GOIANA)","CELETISTA","40 HORAS SEMANAIS","CONCURSO PÚBLICO","2022-09-20"]
[373,"NADJA NAIRA DE FREITAS GONCALVES",{"$f":"\"***\"&MID(Planilha1!D275,4,9)&\"**\"","v":"***.939.774-**"},"TÉCNICO IND. E DE GESTÃO CORP. - TRIAGEM DO PLASMA",null,"HEMOBRÁS - FILIAL UNID. FABRIL (GOIANA)","CELETISTA","40 HORAS SEMANAIS","CONCURSO PÚBLICO","2015-10-20"]
[267,"NARAYANNA MARTINS DANTAS",{"$f":"\"***\"&MID(Planilha1!D276,4,9)&\"**\"","v":"***.044.764-**"},"ANALISTA IND. DE HEMOD. E BIOTEC. - GARANTIA DA QUALIDADE","CHEFE DE SERVIÇO DE NORMAS E PROCEDIMENTOS","HEMOBRÁS - FILIAL UNID. FABRIL (GOIANA)","CELETISTA","40 HORAS SEMANAIS","CONCURSO PÚBLICO","2014-07-14"]
[337,"NATALIA TAURINO DA SILVA",{"$f":"\"***\"&MID(Planilha1!D277,4,9)&\"**\"","v":"***.614.334-**"},"ASSISTENTE IND. E DE GESTÃO CORP - ASSISTENTE ADMINISTRATIVO",null,"HEMOBRÁS - FILIAL UNID. ADM. (RECIFE)","CELETISTA","40 HORAS SEMANAIS","CONCURSO PÚBLICO","2015-04-16"]
[354,"NATHALIA BRITO JATAI",{"$f":"\"***\"&MID(Planilha1!D278,4,9)&\"**\"","v":"***.451.743-**"},"ANALISTA IND. DE HEMOD. E BIOTEC. - GARANTIA DA QUALIDADE",null,"HEMOBRÁS - FILIAL UNID. FABRIL (GOIANA)","CELETISTA","40 HORAS SEMANAIS","CONCURSO PÚBLICO","2015-06-16"]
[353,"NATHALIA MACIEL BEZERRA CAVALCANTI",{"$f":"\"***\"&MID(Planilha1!D279,4,9)&\"**\"","v":"***.275.094-**"},"ANALISTA ADM. DE ASSUNTOS CORP. - LOGÍSTICA FARMACÊUTICA","CHEFE DE SERVIÇO DE LOGÍSTICA FARMACÊUTICA","HEMOBRÁS - FILIAL UNID. ADM. (RECIFE)","CELETISTA","40 HORAS SEMANAIS","CONCURSO PÚBLICO","2015-06-16"]
[216,"NATHALIA ROCHA LIMA",{"$f":"\"***\"&MID(Planilha1!D280,4,9)&\"**\"","v":"***.063.723-**"},"ESPECIALISTA EM PHB - CONTROLE QUALIDADE - I","CHEFE DE SERVIÇO DE LABORATÓRIO","HEMOBRÁS - FILIAL UNID. FABRIL (GOIANA)","CELETISTA","40 HORAS SEMANAIS","CONCURSO PÚBLICO","2014-02-20"]
[339,"NAYANE BRANDAO DE MIRANDA",{"$f":"\"***\"&MID(Planilha1!D281,4,9)&\"**\"","v":"***.327.794-**"},"ANALISTA ADM. DE ASSUNTOS CORP. - ORÇAMENTO E FINANÇAS",null,"HEMOBRÁS - FILIAL UNID. ADM. (RECIFE)","CELETISTA","40 HORAS SEMANAIS","CONCURSO PÚBLICO","2015-04-16"]
[697,"NAYARA BARBOSA TORRES DA SILVA",{"$f":"\"***\"&MID(Planilha1!D282,4,9)&\"**\"","v":"***.708.874-**"},"ANALISTA IND. DE HEMOD. E BIOTEC. - FRACION. IND. PLASMA 1",null,"HEMOBRÁS - FILIAL UNID. FABRIL (GOIANA)","CELETISTA","40 HORAS SEMANAIS","CONCURSO PÚBLICO","2023-08-23"]
[566,"NEEMIAS SANTANA DA CONCEICAO OLIVEIRA",{"$f":"\"***\"&MID(Planilha1!D283,4,9)&\"**\"","v":"***.477.515-**"},"ANALISTA IND. DE HEMOD. E BIOTEC. - GARANTIA DA QUALIDADE 2",null,"HEMOBRÁS - FILIAL UNID. FABRIL (GOIANA)","CELETISTA","40 HORAS SEMANAIS","CONCURSO PÚBLICO","2022-09-20"]
[312,"NELSON GUTEMBERG ROCHA DA SILVA",{"$f":"\"***\"&MID(Planilha1!D284,4,9)&\"**\"","v":"***.517.034-**"},"ANALISTA ADM. DE ASSUNTOS CORP. - TECNOLOGIA DA INFORMAÇÃO",null,"HEMOBRÁS - FILIAL UNID. FABRIL (GOIANA)","CELETISTA","40 HORAS SEMANAIS","CONCURSO PÚBLICO","2015-01-09"]
[650,"NICOLLAS ANGELO JUSTINO LUNA",{"$f":"\"***\"&MID(Planilha1!D285,4,9)&\"**\"","v":"***.662.414-**"},"ANALISTA IND. DE HEMOD. E BIOTEC. - GARANTIA DA QUALIDADE 2",null,"HEMOBRÁS - FILIAL UNID. FABRIL (GOIANA)","CELETISTA","40 HORAS SEMANAIS","CONCURSO PÚBLICO","2023-04-25"]
[43,"NORMA BACELAR BARBALHO",{"$f":"\"***\"&MID(Planilha1!D286,4,9)&\"**\"","v":"***.116.684-**"},"ANALISTA ADM. DE ASSUNTOS CORP. - CONTADOR I","CHEFE DE SERVIÇO ORÇAMENTO E FINANÇAS","HEMOBRÁS - FILIAL UNID. ADM. (RECIFE)","CELETISTA","40 HORAS SEMANAIS","CONCURSO PÚBLICO","2009-10-01"]
[243,"OSMAR BONNOMI",{"$f":"\"***\"&MID(Planilha1!D287,4,9)&\"**\"","v":"***.588.288-**"},"ANALISTA ADM. DE ASSUNTOS CORP. - COMPRAS NAC. E INTERNAC.",null,"HEMOBRÁS - FILIAL UNID. ADM. (RECIFE)","CELETISTA","40 HORAS SEMANAIS","CONCURSO PÚBLICO","2014-03-24"]
[634,"PATRICIA ANDRADE SOUSA",{"$f":"\"***\"&MID(Planilha1!D288,4,9)&\"**\"","v":"***.779.592-**"},"ANALISTA IND. DE HEMOD. E BIOTEC. - GARANTIA DA QUALIDADE 2",null,"HEMOBRÁS - FILIAL UNID. FABRIL (GOIANA)","CELETISTA","40 HORAS SEMANAIS","CONCURSO PÚBLICO","2023-02-24"]
[217,"PATRICIA BARROS DOS SANTOS",{"$f":"\"***\"&MID(Planilha1!D289,4,9)&\"**\"","v":"***.467.347-**"},"ESPECIALISTA EM PHB - FRAC. IND. PLASMA 2","ASSESSOR ESPECIAL","HEMOBRÁS - FILIAL UNID. ADM. (RECIFE)","CELETISTA","40 HORAS SEMANAIS","CONCURSO PÚBLICO","2014-02-20"]
[539,"PATRYCK SILVA FARIAS",{"$f":"\"***\"&MID(Planilha1!D290,4,9)&\"**\"","v":"***.082.003-**"},"ANALISTA ADM. DE ASSUNTOS CORP. - LOGÍSTICA FARMACÊUTICA 1",null,"HEMOBRÁS - FILIAL UNID. ADM. (RECIFE)","CELETISTA","40 HORAS SEMANAIS","CONCURSO PÚBLICO","2022-09-20"]
[280,"PAULA RAYANE DE SOUZA",{"$f":"\"***\"&MID(Planilha1!D291,4,9)&\"**\"","v":"***.294.724-**"},"TÉCNICO IND. E DE GESTÃO CORP. - TRIAGEM DO PLASMA",null,"HEMOBRÁS - FILIAL UNID. FABRIL (GOIANA)","CELETISTA","40 HORAS SEMANAIS","CONCURSO PÚBLICO","2014-07-14"]
[272,"PAULO RICARDO FREIRE DE PAIVA JUNIOR",{"$f":"\"***\"&MID(Planilha1!D292,4,9)&\"**\"","v":"***.638.603-**"},"ANALISTA IND. DE HEMOD. E BIOTEC. - FRACION. IND. PLASMA 1",null,"HEMOBRÁS - FILIAL UNID. FABRIL (GOIANA)","CELETISTA","40 HORAS SEMANAIS","CONCURSO PÚBLICO","2014-07-14"]
[599,"PEDRO AFONSO TOMAZ DE OLIVEIRA",{"$f":"\"***\"&MID(Planilha1!D293,4,9)&\"**\"","v":"***.712.194-**"},"ANALISTA IND. DE HEMOD. E BIOTEC. - FRACION. IND. PLASMA 1",null,"HEMOBRÁS - FILIAL UNID. FABRIL (GOIANA)","CELETISTA","40 HORAS SEMANAIS","CONCURSO PÚBLICO","2022-11-25"]
[488,"PEDRO CANISIO BINSFELD",{"$f":"\"***\"&MID(Planilha1!D294,4,9)&\"**\"","v":"***.025.170-**"},null,"CONSELHEIRO ADMINISTRATIVO","NÃO SE APLICA","NÃO SE APLICA","SEM JORNADA","TERMO DE POSSE","2020-01-17"]
[93,"PEDRO CANUTO VIEIRA DA COSTA",{"$f":"\"***\"&MID(Planilha1!D295,4,9)&\"**\"","v":"***.950.974-**"},"ESPECIALISTA EM PHB - CONTROLE QUALIDADE - I","GERENTE DE CONTROLE DE QUALIDADE","HEMOBRÁS - FILIAL UNID. FABRIL (GOIANA)","CELETISTA","40 HORAS SEMANAIS","CONCURSO PÚBLICO","2010-11-22"]
[703,"PEDRO HENRIQUE CELESTINO DE OLIVEIRA",{"$f":"\"***\"&MID(Planilha1!D296,4,9)&\"**\"","v":"***.705.014-**"},"ANALISTA ADM. DE ASS CORP. - AUDIT. INTERNA,GESTAO RISC.CONF",null,"HEMOBRÁS - FILIAL UNID. ADM. (RECIFE)","CELETISTA","40 HORAS SEMANAIS","CONCURSO PÚBLICO","2023-08-23"]
[570,"PEDRO HENRIQUE DA SILVA",{"$f":"\"***\"&MID(Planilha1!D297,4,9)&\"**\"","v":"***.772.111-**"},"ANALISTA IND. DE HEMOD. E BIOTEC. - GARANTIA DA QUALIDADE 2",null,"HEMOBRÁS - FILIAL UNID. FABRIL (GOIANA)","CELETISTA","40 HORAS SEMANAIS","CONCURSO PÚBLICO","2022-09-20"]
[655,"PEDRO HENRIQUE GONCALVES DE MELO",{"$f":"\"***\"&MID(Planilha1!D298,4,9)&\"**\"","v":"***.418.114-**"},"TÉCNICO IND. E DE GESTÃO CORP. - REFRIGERAÇÃO",null,"HEMOBRÁS - FILIAL UNID. FABRIL (GOIANA)","CELETISTA","40 HORAS SEMANAIS","CONCURSO PÚBLICO","2023-07-24"]
[528,"PERLIA ZAIRINE DE CASTRO HERACLIO LIRA",{"$f":"\"***\"&MID(Planilha1!D299,4,9)&\"**\"","v":"***.553.004-**"},"ANALISTA IND. DE HEMOD. E BIOTEC. - FRACION. IND. PLASMA 1",null,"HEMOBRÁS - FILIAL UNID. FABRIL (GOIANA)","CELETISTA","40 HORAS SEMANAIS","CONCURSO PÚBLICO","2022-03-17"]
[244,"PLUTARCO REIS DE MACEDO GRANJA",{"$f":"\"***\"&MID(Planilha1!D300,4,9)&\"**\"","v":"***.015.054-**"},"ANALISTA DE GES. CORP. - LOGÍSTICA FARMACÊUTICA","OUVIDOR","HEMOBRÁS - FILIAL UNID. ADM. (RECIFE)","CELETISTA","40 HORAS SEMANAIS","CONCURSO PÚBLICO","2014-03-24"]
[416,"POLIANNA ALVES DE CASTRO",{"$f":"\"***\"&MID(Planilha1!D301,4,9)&\"**\"","v":"***.923.801-**"},"ANALISTA IND. DE HEMOD. E BIOTEC. - GARANTIA DA QUALIDADE",null,"HEMOBRÁS - FILIAL UNID. FABRIL (GOIANA)","CELETISTA","40 HORAS SEMANAIS","CONCURSO PÚBLICO","2016-08-16"]
[621,"POLLYANA MARIA BARROS DE FRANCA",{"$f":"\"***\"&MID(Planilha1!D302,4,9)&\"**\"","v":"***.046.124-**"},"ANALISTA ADM. DE ASS CORP. - AUDIT. INTERNA,GESTAO RISC.CONF",null,"HEMOBRÁS - FILIAL UNID. ADM. (RECIFE)","CELETISTA","40 HORAS SEMANAIS","CONCURSO PÚBLICO","2023-01-25"]
[529,"POLLYANNA LEITE FERREIRA DA COSTA",{"$f":"\"***\"&MID(Planilha1!D303,4,9)&\"**\"","v":"***.006.744-**"},"ANALISTA IND. DE HEMOD. E BIOTEC. - FRACION. IND. PLASMA 1",null,"HEMOBRÁS - FILIAL UNID. FABRIL (GOIANA)","CELETISTA","40 HORAS SEMANAIS","CONCURSO PÚBLICO","2022-03-17"]
[643,"PRISCILA ROBERTA DE AZEVEDO",{"$f":"\"***\"&MID(Planilha1!D304,4,9)&\"**\"","v":"***.700.514-**"},"ANALISTA IND. DE HEMOD. E BIOTEC. - CONTROLE QUALIDADE - 2",null,"HEMOBRÁS - FILIAL UNID. FABRIL (GOIANA)","CELETISTA","40 HORAS SEMANAIS","CONCURSO PÚBLICO","2023-04-25"]
[620,"RAFAEL BASTOS PIMENTA",{"$f":"\"***\"&MID(Planilha1!D305,4,9)&\"**\"","v":"***.209.584-**"},"ANALISTA IND. DE HEMOD. E BIOTEC. - ENG. MECÂNICA",null,"HEMOBRÁS - FILIAL UNID. FABRIL (GOIANA)","CELETISTA","40 HORAS SEMANAIS","CONCURSO PÚBLICO","2023-02-01"]
[657,"RAFAEL CALDAS PEREIRA",{"$f":"\"***\"&MID(Planilha1!D306,4,9)&\"**\"","v":"***.164.134-**"},"ANALISTA IND. DE HEMOD. E BIOTEC. - CONTROLE QUALIDADE - 2",null,"HEMOBRÁS - FILIAL UNID. FABRIL (GOIANA)","CELETISTA","40 HORAS SEMANAIS","CONCURSO PÚBLICO","2023-07-24"]
[682,"RAFAEL CANDIDO ALVES AGUIAR",{"$f":"\"***\"&MID(Planilha1!D307,4,9)&\"**\"","v":"***.252.816-**"},"ANALISTA IND. DE HEMOD. E BIOTEC. - FRACION. IND. PLASMA 1",null,"HEMOBRÁS - FILIAL UNID. ADM. (RECIFE)","CELETISTA","40 HORAS SEMANAIS","CONCURSO PÚBLICO","2023-07-24"]
[313,"RAFAEL ELIAS SALOMAO JAEGGER",{"$f":"\"***\"&MID(Planilha1!D308,4,9)&\"**\"","v":"***.252.684-**"},"ANALISTA ADM. DE ASSUNTOS CORP. - ADMINISTRAÇÃO DE PESSOAL","GERENTE DE GESTÃO DE PESSOAS","HEMOBRÁS - FILIAL UNID. ADM. (RECIFE)","CELETISTA","40 HORAS SEMANAIS","CONCURSO PÚBLICO","2015-01-09"]
[686,"RAFAELA BARCELOS DOS SANTOS",{"$f":"\"***\"&MID(Planilha1!D309,4,9)&\"**\"","v":"***.067.911-**"},"ANALISTA IND. DE HEMOD. E BIOTEC. - FRACION. IND. PLASMA 2",null,"HEMOBRÁS - FILIAL UNID. FABRIL (GOIANA)","CELETISTA","40 HORAS SEMANAIS","CONCURSO PÚBLICO","2023-07-24"]
[631,"RAILA DE ARAUJO SABINO",{"$f":"\"***\"&MID(Planilha1!D310,4,9)&\"**\"","v":"***.780.474-**"},"ANALISTA IND. DE HEMOD. E BIOTEC. - CONTROLE QUALIDADE - 2",null,"HEMOBRÁS - FILIAL UNID. FABRIL (GOIANA)","CELETISTA","40 HORAS SEMANAIS","CONCURSO PÚBLICO","2023-02-24"]
[618,"RAIMUNDO CARDOSO DE OLIVEIRA NETO",{"$f":"\"***\"&MID(Planilha1!D311,4,9)&\"**\"","v":"***.319.073-**"},"ANALISTA IND. DE HEMOD. E BIOTEC. - CONTROLE QUALIDADE - 3",null,"HEMOBRÁS - FILIAL UNID. FABRIL (GOIANA)","CELETISTA","40 HORAS SEMANAIS","CONCURSO PÚBLICO","2023-01-25"]
[276,"RAPHAEL VALE MENDES",{"$f":"\"***\"&MID(Planilha1!D312,4,9)&\"**\"","v":"***.951.837-**"},"ANALISTA ADM. DE ASSUNTOS CORP. - ECONOMIA","ASSESSOR TÉCNICO ESPECIALIZADO","HEMOBRÁS - FILIAL UNID. ADM. (RECIFE)","CELETISTA","40 HORAS SEMANAIS","CONCURSO PÚBLICO","2014-07-14"]
[552,"RAQUEL GOIS BASTOS",{"$f":"\"***\"&MID(Planilha1!D313,4,9)&\"**\"","v":"***.918.105-**"},"ANALISTA IND. DE HEMOD. E BIOTEC. - PLASMA E HEMOCOMPONENTES",null,"HEMOBRÁS - FILIAL UNID. ADM. (RECIFE)","CELETISTA","40 HORAS SEMANAIS","CONCURSO PÚBLICO","2022-09-20"]
[51,"RAQUEL JACQUES DE FARIAS MADRUGA",{"$f":"\"***\"&MID(Planilha1!D314,4,9)&\"**\"","v":"***.045.824-**"},"ESPECIALISTA EM PHB - GARANTIA DA QUALIDADE - I","CHEFE DE SERVIÇO DE PRODUÇÃO DE BIOTECNOLÓGICOS","HEMOBRÁS - FILIAL UNID. FABRIL (GOIANA)","CELETISTA","40 HORAS SEMANAIS","CONCURSO PÚBLICO","2009-08-04"]
[687,"RAYSSA TOSCANO DUARTE",{"$f":"\"***\"&MID(Planilha1!D315,4,9)&\"**\"","v":"***.349.074-**"},"ANALISTA IND. DE HEMOD. E BIOTEC. - FRACION. IND. PLASMA 1",null,"HEMOBRÁS - FILIAL UNID. FABRIL (GOIANA)","CELETISTA","40 HORAS SEMANAIS","CONCURSO PÚBLICO","2023-07-24"]
[600,"RENATA MENDES BATISTA DE OLIVEIRA GOUVEIA",{"$f":"\"***\"&MID(Planilha1!D316,4,9)&\"**\"","v":"***.135.314-**"},"ANALISTA IND. DE HEMOD. E BIOTEC. - FRACION. IND. PLASMA 2",null,"HEMOBRÁS - FILIAL UNID. FABRIL (GOIANA)","CELETISTA","40 HORAS SEMANAIS","CONCURSO PÚBLICO","2022-11-25"]
[303,"RENATA MENDONCA DE MENEZES LYRA",{"$f":"\"***\"&MID(Planilha1!D317,4,9)&\"**\"","v":"***.904.174-**"},"TÉCNICO IND. E DE GESTÃO CORP. - SEGURANÇA DO TRABALHO",null,"HEMOBRÁS - FILIAL UNID. FABRIL (GOIANA)","CELETISTA","40 HORAS SEMANAIS","CONCURSO PÚBLICO","2014-12-05"]
[689,"RENATA VITORIA DA SILVA SOBRAL",{"$f":"\"***\"&MID(Planilha1!D318,4,9)&\"**\"","v":"***.077.234-**"},"ANALISTA IND. DE HEMOD. E BIOTEC. - FRACION. IND. PLASMA 2",null,"HEMOBRÁS - FILIAL UNID. FABRIL (GOIANA)","CELETISTA","40 HORAS SEMANAIS","CONCURSO PÚBLICO","2023-07-24"]
[218,"RENATO CESAR VIEIRA DE SOUSA",{"$f":"\"***\"&MID(Planilha1!D319,4,9)&\"**\"","v":"***.629.874-**"},"ESPECIALISTA EM PHB - GARANTIA DA QUALIDADE",null,"HEMOBRÁS - FILIAL UNID. FABRIL (GOIANA)","CELETISTA","40 HORAS SEMANAIS","CONCURSO PÚBLICO","2014-02-20"]
[651,"RENATO DA SILVA SOUZA",{"$f":"\"***\"&MID(Planilha1!D320,4,9)&\"**\"","v":"***.552.394-**"},"ANALISTA IND. DE HEMOD. E BIOTEC. - GARANTIA DA QUALIDADE 2",null,"HEMOBRÁS - FILIAL UNID. FABRIL (GOIANA)","CELETISTA","40 HORAS SEMANAIS","CONCURSO PÚBLICO","2023-04-25"]
[436,"RENATO DE ARAUJO FERREIRA",{"$f":"\"***\"&MID(Planilha1!D321,4,9)&\"**\"","v":"***.438.738-**"},null,"ASSESSOR TÉCNICO ESPECIALIZADO","HEMOBRÁS - FILIAL UNID. ADM. (RECIFE)","CELETISTA","40 HORAS SEMANAIS","PORTARIA ","2017-08-03"]
[722,"RICARDO ALVES DE BRITO",{"$f":"\"***\"&MID(Planilha1!D322,4,9)&\"**\"","v":"***4327496**"},"ANALISTA ADM. DE ASSUNTOS CORP. - ORÇAMENTO E FINANÇAS",null,"HEMOBRÁS - FILIAL UNID. ADM. (RECIFE)","CELETISTA","40 HORAS SEMANAIS","CONCURSO PÚBLICO","2024-01-10"]
[268,"RICARDO GALINDO PAES DE LIRA",{"$f":"\"***\"&MID(Planilha1!D323,4,9)&\"**\"","v":"***.693.294-**"},"ANALISTA IND. DE HEMOD. E BIOTEC. - GARANTIA DA QUALIDADE",null,"HEMOBRÁS - FILIAL UNID. FABRIL (GOIANA)","CELETISTA","40 HORAS SEMANAIS","CONCURSO PÚBLICO","2014-07-14"]
[407,"RICARDO NUNES RIBEIRO",{"$f":"\"***\"&MID(Planilha1!D324,4,9)&\"**\"","v":"***.364.636-**"},"ANALISTA ADM. DE ASSUNTOS CORP. - LOGÍSTICA FARMACÊUTICA","CHEFE DE SERVIÇO DE PRODUTOS E INSUMOS FARMACÊUTICOS","HEMOBRÁS - FILIAL UNID. FABRIL (GOIANA)","CELETISTA","40 HORAS SEMANAIS","CONCURSO PÚBLICO","2016-07-14"]
[96,"ROBERTA FREIRE DE CARVALHO FEITOSA",{"$f":"\"***\"&MID(Planilha1!D325,4,9)&\"**\"","v":"***.855.204-**"},"ANALISTA DE GES. CORP. - CONTADOR I",null,"HEMOBRÁS - FILIAL UNID. ADM. (RECIFE)","CELETISTA","40 HORAS SEMANAIS","CONCURSO PÚBLICO","2010-12-27"]
[314,"RODRIGO DE LIMA FERREIRA",{"$f":"\"***\"&MID(Planilha1!D326,4,9)&\"**\"","v":"***.451.936-**"},"ASSISTENTE IND. E DE GESTÃO CORP - ASSISTENTE ADMINISTRATIVO",null,"HEMOBRÁS - FILIAL UNID. FABRIL (GOIANA)","CELETISTA","40 HORAS SEMANAIS","CONCURSO PÚBLICO","2015-01-09"]
[356,"RODRIGO NUNES DE MELO",{"$f":"\"***\"&MID(Planilha1!D327,4,9)&\"**\"","v":"***.248.794-**"},"ANALISTA IND. DE HEMOD. E BIOTEC. - ENG. ELÉTRICA",null,"HEMOBRÁS - FILIAL UNID. FABRIL (GOIANA)","CELETISTA","40 HORAS SEMANAIS","CONCURSO PÚBLICO","2015-06-16"]
[652,"RODRIGO VINICIUS BRITO LIRA",{"$f":"\"***\"&MID(Planilha1!D328,4,9)&\"**\"","v":"***.989.284-**"},"ANALISTA IND. DE HEMOD. E BIOTEC. - GARANTIA DA QUALIDADE 2",null,"HEMOBRÁS - FILIAL UNID. FABRIL (GOIANA)","CELETISTA","40 HORAS SEMANAIS","CONCURSO PÚBLICO","2023-04-25"]
[52,"RONALDO CARLOS OLIVEIRA",{"$f":"\"***\"&MID(Planilha1!D329,4,9)&\"**\"","v":"***.888.449-**"},"ESPECIALISTA EM PHB - ENG. QUÍMICO - I","CHEFE DE SERVIÇO DE ESCRITÓRIO DE PROJETOS DE ENGENHARIA","HEMOBRÁS - FILIAL UNID. FABRIL (GOIANA)","CELETISTA","40 HORAS SEMANAIS","CONCURSO PÚBLICO","2009-06-23"]
[567,"RONALDO GONCALVES NOGUEIRA",{"$f":"\"***\"&MID(Planilha1!D330,4,9)&\"**\"","v":"***.277.806-**"},"ANALISTA IND. DE HEMOD. E BIOTEC. - GARANTIA DA QUALIDADE 2",null,"HEMOBRÁS - FILIAL UNID. FABRIL (GOIANA)","CELETISTA","40 HORAS SEMANAIS","CONCURSO PÚBLICO","2022-09-20"]
[647,"RONALDO LEITE MATIAS",{"$f":"\"***\"&MID(Planilha1!D331,4,9)&\"**\"","v":"***.551.204-**"},"ANALISTA IND. DE HEMOD. E BIOTEC. - ENG. AUTOMAÇÃO E CONTROLE",null,"HEMOBRÁS - FILIAL UNID. FABRIL (GOIANA)","CELETISTA","40 HORAS SEMANAIS","CONCURSO PÚBLICO","2023-04-25"]
[705,"RONICLEY PINHEIRO MARTINS DE JESUS",{"$f":"\"***\"&MID(Planilha1!D332,4,9)&\"**\"","v":"***.223.145-**"},"ANALISTA ADM. DE ASSUNTOS CORP. - COMPRAS NAC. E INTERNAC.",null,"HEMOBRÁS - FILIAL UNID. ADM. (RECIFE)","CELETISTA","40 HORAS SEMANAIS","CONCURSO PÚBLICO","2023-09-11"]
[554,"RONMILSON ALVES MARQUES",{"$f":"\"***\"&MID(Planilha1!D333,4,9)&\"**\"","v":"***.170.484-**"},"ANALISTA IND. DE HEMOD. E BIOTEC. - CONTROLE QUALIDADE - 2",null,"HEMOBRÁS - FILIAL UNID. FABRIL (GOIANA)","CELETISTA","40 HORAS SEMANAIS","CONCURSO PÚBLICO","2022-09-20"]
[688,"ROSILANE SOARES PINTO DA SILVA",{"$f":"\"***\"&MID(Planilha1!D334,4,9)&\"**\"","v":"***.972.484-**"},"ANALISTA IND. DE HEMOD. E BIOTEC. - FRACION. IND. PLASMA 2",null,"HEMOBRÁS - FILIAL UNID. FABRIL (GOIANA)","CELETISTA","40 HORAS SEMANAIS","CONCURSO PÚBLICO","2023-07-24"]
[315,"ROSSANA MARIA CARVALHO BRAGA",{"$f":"\"***\"&MID(Planilha1!D335,4,9)&\"**\"","v":"***.730.304-**"},"ANALISTA IND. DE HEMOD. E BIOTEC. - ARMAZ E DISTRIB DE MEDIC",null,"HEMOBRÁS - FILIAL UNID. FABRIL (GOIANA)","CELETISTA","40 HORAS SEMANAIS","CONCURSO PÚBLICO","2015-01-09"]
[718,"RUBENS ZAQUEU OLIVEIRA DOS SANTOS",{"$f":"\"***\"&MID(Planilha1!D336,4,9)&\"**\"","v":"***.789.274-**"},"ASSISTENTE IND. E DE GESTÃO CORP - ASSISTENTE ADMINISTRATIVO",null,"HEMOBRÁS - FILIAL UNID. ADM. (RECIFE)","CELETISTA","40 HORAS SEMANAIS","CONCURSO PÚBLICO","2023-10-09"]
[235,"SABRINA ANDRADE DE ALCANTARA",{"$f":"\"***\"&MID(Planilha1!D337,4,9)&\"**\"","v":"***.691.104-**"},"ASSISTENTE IND. E DE GESTÃO CORP - ASSISTENTE ADMINISTRATIVO",null,"HEMOBRÁS - FILIAL UNID. ADM. (RECIFE)","CELETISTA","40 HORAS SEMANAIS","CONCURSO PÚBLICO","2014-02-21"]
[220,"SABRINA POLETTO",{"$f":"\"***\"&MID(Planilha1!D338,4,9)&\"**\"","v":"***.536.059-**"},"ESPECIALISTA EM PHB - FRAC. IND. PLASMA 1 - I","CHEFE DE SERVIÇO DE ENVASE E EMBALAGEM","HEMOBRÁS - FILIAL UNID. FABRIL (GOIANA)","CELETISTA","40 HORAS SEMANAIS","CONCURSO PÚBLICO","2014-02-20"]
[604,"SANDRO DE SOUSA LEAL",{"$f":"\"***\"&MID(Planilha1!D339,4,9)&\"**\"","v":"***.943.034-**"},"ANALISTA IND. DE HEMOD. E BIOTEC. - FRACION. IND. PLASMA 2",null,"HEMOBRÁS - FILIAL UNID. FABRIL (GOIANA)","CELETISTA","40 HORAS SEMANAIS","CONCURSO PÚBLICO","2022-11-25"]
[571,"SARAH CHRISTINE CAVALCANTI XIMENES",{"$f":"\"***\"&MID(Planilha1!D340,4,9)&\"**\"","v":"***.389.084-**"},"ANALISTA IND. DE HEMOD. E BIOTEC. - GARANTIA DA QUALIDADE 2",null,"HEMOBRÁS - FILIAL UNID. FABRIL (GOIANA)","CELETISTA","40 HORAS SEMANAIS","CONCURSO PÚBLICO","2022-09-20"]
[106,"SAULO BANDEIRA DURVAL",{"$f":"\"***\"&MID(Planilha1!D341,4,9)&\"**\"","v":"***.083.234-**"},"ASSISTENTE IND. E DE GESTÃO CORP - TÉC. EM CONTABILIDADE I","GERENTE DE LICITAÇÕES E CONTRATAÇÕES","HEMOBRÁS - FILIAL UNID. ADM. (RECIFE)","CELETISTA","40 HORAS SEMANAIS","CONCURSO PÚBLICO","2011-03-02"]
[605,"SAULO HENRIQUE SILVA",{"$f":"\"***\"&MID(Planilha1!D342,4,9)&\"**\"","v":"***.848.484-**"},"ANALISTA IND. DE HEMOD. E BIOTEC. - FRACION. IND. PLASMA 2",null,"HEMOBRÁS - FILIAL UNID. FABRIL (GOIANA)","CELETISTA","40 HORAS SEMANAIS","CONCURSO PÚBLICO","2022-11-25"]
[608,"SERGIO CORREIA DA CONCEICAO",{"$f":"\"***\"&MID(Planilha1!D343,4,9)&\"**\"","v":"***.589.724-**"},"TÉCNICO IND. E DE GESTÃO CORP. - TRIAGEM DO PLASMA",null,"HEMOBRÁS - FILIAL UNID. FABRIL (GOIANA)","CELETISTA","40 HORAS SEMANAIS","CONCURSO PÚBLICO","2023-01-25"]
[394,"SEVERINA JAKELINE PEDROSA DE ARAUJO ALBUQUERQUE",{"$f":"\"***\"&MID(Planilha1!D344,4,9)&\"**\"","v":"***.917.174-**"},"ANALISTA ADM. DE ASSUNTOS CORP. - ANALISTA JURÍDICO",null,"HEMOBRÁS - FILIAL UNID. ADM. (RECIFE)","CELETISTA","40 HORAS SEMANAIS","CONCURSO PÚBLICO","2016-03-02"]
[616,"SEVERINO GRANGEIRO JUNIOR",{"$f":"\"***\"&MID(Planilha1!D345,4,9)&\"**\"","v":"***.956.513-**"},"ANALISTA IND. DE HEMOD. E BIOTEC. - CONTROLE QUALIDADE - 2",null,"HEMOBRÁS - FILIAL UNID. FABRIL (GOIANA)","CELETISTA","40 HORAS SEMANAIS","CONCURSO PÚBLICO","2023-01-25"]
[588,"SHEILA CRISTINA AZEVEDO DA SILVA CHAVES",{"$f":"\"***\"&MID(Planilha1!D346,4,9)&\"**\"","v":"***.081.344-**"},"ANALISTA ADM. DE ASSUNTOS CORP. - ASSESSORIA ADMINISTRATIVA",null,"HEMOBRÁS - FILIAL UNID. ADM. (RECIFE)","CELETISTA","40 HORAS SEMANAIS","CONCURSO PÚBLICO","2023-01-25"]
[386,"SIMONE CRISTINA FEITOSA BRITO",{"$f":"\"***\"&MID(Planilha1!D347,4,9)&\"**\"","v":"***.771.594-**"},null,"SECRETÁRIA EXECUTIVA","HEMOBRÁS - FILIAL UNID. ADM. (RECIFE)","CELETISTA","40 HORAS SEMANAIS","PORTARIA ","2016-02-03"]
[506,"SUELENE MAMEDE DE OLIVEIRA",{"$f":"\"***\"&MID(Planilha1!D348,4,9)&\"**\"","v":"***.758.524-**"},"ESPECIALISTA EM PHB - CONTROLE QUALIDADE - I","ASSESSOR TÉCNICO ESPECIALIZADO","HEMOBRÁS - FILIAL UNID. ADM. (RECIFE)","CELETISTA","40 HORAS SEMANAIS","CONCURSO PÚBLICO","2008-01-14"]
[219,"SUELLEN DE OLIVEIRA SANTOS",{"$f":"\"***\"&MID(Planilha1!D349,4,9)&\"**\"","v":"***.663.394-**"},"ESPECIALISTA EM PHB - GARANTIA DA QUALIDADE - I",null,"HEMOBRÁS - FILIAL UNID. FABRIL (GOIANA)","CELETISTA","40 HORAS SEMANAIS","CONCURSO PÚBLICO","2014-02-20"]
[606,"SURYA BUSS",{"$f":"\"***\"&MID(Planilha1!D350,4,9)&\"**\"","v":"***.247.899-**"},"ANALISTA IND. DE HEMOD. E BIOTEC. - FRACION. IND. PLASMA 1",null,"HEMOBRÁS - FILIAL UNID. FABRIL (GOIANA)","CELETISTA","40 HORAS SEMANAIS","CONCURSO PÚBLICO","2022-11-28"]
[654,"SUZANNY SANTOS SEAL",{"$f":"\"***\"&MID(Planilha1!D351,4,9)&\"**\"","v":"***.493.024-**"},"ANALISTA ADM. DE ASSUNTOS CORP. - COMPRAS NAC. E INTERNAC.",null,"HEMOBRÁS - FILIAL UNID. ADM. (RECIFE)","CELETISTA","40 HORAS SEMANAIS","CONCURSO PÚBLICO","2023-07-24"]
[670,"SYMON JONATAN SANTIAGO PAULINO",{"$f":"\"***\"&MID(Planilha1!D352,4,9)&\"**\"","v":"***.452.124-**"},"ANALISTA IND. DE HEMOD. E BIOTEC. - FRACION. IND. PLASMA 2",null,"HEMOBRÁS - FILIAL UNID. FABRIL (GOIANA)","CELETISTA","40 HORAS SEMANAIS","CONCURSO PÚBLICO","2023-07-24"]
[221,"TALITA GOMES CALACA MENEZES",{"$f":"\"***\"&MID(Planilha1!D353,4,9)&\"**\"","v":"***.694.774-**"},"ESPECIALISTA EM PHB - FRAC. IND. PLASMA 1 - I","ASSESSOR TÉCNICO ESPECIALIZADO","HEMOBRÁS - FILIAL UNID. ADM. (RECIFE)","CELETISTA","40 HORAS SEMANAIS","CONCURSO PÚBLICO","2014-02-20"]
[646,"TAMIRES GONCALVES DE JESUS",{"$f":"\"***\"&MID(Planilha1!D354,4,9)&\"**\"","v":"***.825.675-**"},"ANALISTA IND. DE HEMOD. E BIOTEC. - CONTROLE QUALIDADE - 2",null,"HEMOBRÁS - FILIAL UNID. FABRIL (GOIANA)","CELETISTA","40 HORAS SEMANAIS","CONCURSO PÚBLICO","2023-04-25"]
[531,"TARCISIO TARCIO CORREA BONIFACIO",{"$f":"\"***\"&MID(Planilha1!D355,4,9)&\"**\"","v":"***.548.554-**"},"ANALISTA IND. DE HEMOD. E BIOTEC. - FRACION. IND. PLASMA 1",null,"HEMOBRÁS - FILIAL UNID. FABRIL (GOIANA)","CELETISTA","40 HORAS SEMANAIS","CONCURSO PÚBLICO","2022-04-13"]
[475,"TATIANE CIBELE DE SOUZA GOMES",{"$f":"\"***\"&MID(Planilha1!D356,4,9)&\"**\"","v":"***.354.324-**"},"ANALISTA IND. DE HEMOD. E BIOTEC. - CONTROLE QUALIDADE - 1",null,"HEMOBRÁS - FILIAL UNID. FABRIL (GOIANA)","CELETISTA","40 HORAS SEMANAIS","CONCURSO PÚBLICO","2019-03-01"]
[390,"TEREZA MANUELA DOS SANTOS PAES BARRETO",{"$f":"\"***\"&MID(Planilha1!D357,4,9)&\"**\"","v":"***.430.884-**"},"ANALISTA ADM. DE ASSUNTOS CORP. - AUDITORIA INTERNA",null,"HEMOBRÁS - FILIAL UNID. ADM. (RECIFE)","CELETISTA","40 HORAS SEMANAIS","CONCURSO PÚBLICO","2016-02-16"]
[635,"THACIANE DA CUNHA SOARES SILVA",{"$f":"\"***\"&MID(Planilha1!D358,4,9)&\"**\"","v":"***.873.934-**"},"ANALISTA IND. DE HEMOD. E BIOTEC. - GARANTIA DA QUALIDADE 2",null,"HEMOBRÁS - FILIAL UNID. FABRIL (GOIANA)","CELETISTA","40 HORAS SEMANAIS","CONCURSO PÚBLICO","2023-03-13"]
[572,"THALITA PEDON DE ARAUJO CARDOSO",{"$f":"\"***\"&MID(Planilha1!D359,4,9)&\"**\"","v":"***.650.084-**"},"ANALISTA IND. DE HEMOD. E BIOTEC. - GARANTIA DA QUALIDADE 2",null,"HEMOBRÁS - FILIAL UNID. FABRIL (GOIANA)","CELETISTA","40 HORAS SEMANAIS","CONCURSO PÚBLICO","2022-09-20"]
[636,"THANIA MAURA RODRIGUES BEZERRA",{"$f":"\"***\"&MID(Planilha1!D360,4,9)&\"**\"","v":"***.152.783-**"},"ANALISTA IND. DE HEMOD. E BIOTEC. - GARANTIA DA QUALIDADE 2",null,"HEMOBRÁS - FILIAL UNID. FABRIL (GOIANA)","CELETISTA","40 HORAS SEMANAIS","CONCURSO PÚBLICO","2023-02-24"]
[480,"THAYSE NAYARA BEZERRA DA CRUZ",{"$f":"\"***\"&MID(Planilha1!D361,4,9)&\"**\"","v":"***.584.844-**"},"ANALISTA ADM. DE ASSUNTOS CORP. - LOGÍSTICA FARMACÊUTICA",null,"HEMOBRÁS - FILIAL UNID. ADM. (RECIFE)","CELETISTA","40 HORAS SEMANAIS","CONCURSO PÚBLICO","2019-05-07"]
[716,"THIAGO HENRIQUE DE FARIAS BELCHIOR",{"$f":"\"***\"&MID(Planilha1!D362,4,9)&\"**\"","v":"***.948.684-**"},"ASSISTENTE IND. E DE GESTÃO CORP - ASSISTENTE DE INFORMÁTICA",null,"HEMOBRÁS - FILIAL UNID. FABRIL (GOIANA)","CELETISTA","40 HORAS SEMANAIS","CONCURSO PÚBLICO","2023-10-09"]
[680,"THIALE BORGES SILVA DOS SANTOS",{"$f":"\"***\"&MID(Planilha1!D363,4,9)&\"**\"","v":"***.663.835-**"},"ANALISTA IND. DE HEMOD. E BIOTEC. - FRACION. IND. PLASMA 1",null,"HEMOBRÁS - FILIAL UNID. FABRIL (GOIANA)","CELETISTA","40 HORAS SEMANAIS","CONCURSO PÚBLICO","2023-07-24"]
[540,"TIAGO BEZERRA LIMA",{"$f":"\"***\"&MID(Planilha1!D364,4,9)&\"**\"","v":"***.912.774-**"},"ANALISTA ADM. DE ASSUNTOS CORP. - CONTRATO",null,"HEMOBRÁS - FILIAL UNID. FABRIL (GOIANA)","CELETISTA","40 HORAS SEMANAIS","CONCURSO PÚBLICO","2022-09-20"]
[319,"TIAGO CAMPOS RODRIGUES DE SOUZA",{"$f":"\"***\"&MID(Planilha1!D365,4,9)&\"**\"","v":"***.746.004-**"},"ANALISTA ADM. DE ASSUNTOS CORP. - ANALISTA JURÍDICO","ASSESSOR JURÍDICO","HEMOBRÁS - FILIAL UNID. ADM. (RECIFE)","CELETISTA","40 HORAS SEMANAIS","CONCURSO PÚBLICO","2015-03-02"]
[617,"VANESSA BALDEZ BRUM",{"$f":"\"***\"&MID(Planilha1!D366,4,9)&\"**\"","v":"***.614.177-**"},"ANALISTA IND. DE HEMOD. E BIOTEC. - CONTROLE QUALIDADE - 2",null,"HEMOBRÁS - FILIAL UNID. FABRIL (GOIANA)","CELETISTA","40 HORAS SEMANAIS","CONCURSO PÚBLICO","2023-02-24"]
[316,"VANESSA BARBOSA TELES",{"$f":"\"***\"&MID(Planilha1!D367,4,9)&\"**\"","v":"***.057.605-**"},"ASSISTENTE IND. E DE GESTÃO CORP - ASSISTENTE ADMINISTRATIVO",null,"HEMOBRÁS - FILIAL UNID. ADM. (RECIFE)","CELETISTA","40 HORAS SEMANAIS","CONCURSO PÚBLICO","2015-01-09"]
[284,"VANESSA SILVA DE OLIVEIRA GOMES",{"$f":"\"***\"&MID(Planilha1!D368,4,9)&\"**\"","v":"***.135.844-**"},"ANALISTA IND. DE HEMOD. E BIOTEC. - FRACION. IND. PLASMA 1",null,"HEMOBRÁS - FILIAL UNID. FABRIL (GOIANA)","CELETISTA","40 HORAS SEMANAIS","CONCURSO PÚBLICO","2014-08-04"]
[55,"VICENTE ANTONIO DAS NEVES NETO",{"$f":"\"***\"&MID(Planilha1!D369,4,9)&\"**\"","v":"***.551.454-**"},"TÉCNICO IND. E DE GESTÃO CORPORATIVA",null,"HEMOBRÁS - FILIAL UNID. ADM. (RECIFE)","CELETISTA","40 HORAS SEMANAIS","CONCURSO PÚBLICO","2009-10-01"]
[723,"VICENTE JOSE ALVES BACELAR",{"$f":"\"***\"&MID(Planilha1!D370,4,9)&\"**\"","v":"***.436.804-**"},"ANALISTA ADM. DE ASSUNTOS CORP. - TECNOLOGIA DA INFORMAÇÃO",null,"HEMOBRÁS - FILIAL UNID. FABRIL (GOIANA)","CELETISTA","40 HORAS SEMANAIS","CONCURSO PÚBLICO","2024-01-10"]
[665,"VICTOR HUGO CAVALCANTI FERREIRA SILVA",{"$f":"\"***\"&MID(Planilha1!D371,4,9)&\"**\"","v":"***.295.384-**"},"ANALISTA IND. DE HEMOD. E BIOTEC. - FRACION. IND. PLASMA 1",null,"HEMOBRÁS - FILIAL UNID. FABRIL (GOIANA)","CELETISTA","40 HORAS SEMANAIS","CONCURSO PÚBLICO","2023-07-24"]
[546,"VINICIUS FURTADO PONTES",{"$f":"\"***\"&MID(Planilha1!D372,4,9)&\"**\"","v":"***.552.183-**"},"ANALISTA ADM. DE ASSUNTOS CORP. - LOGÍSTICA FARMACÊUTICA 1",null,"HEMOBRÁS - FILIAL UNID. FABRIL (GOIANA)","CELETISTA","40 HORAS SEMANAIS","CONCURSO PÚBLICO","2022-09-20"]
[548,"VITOR BUARQUE VALENCA",{"$f":"\"***\"&MID(Planilha1!D373,4,9)&\"**\"","v":"***.154.914-**"},"ANALISTA ADM. DE ASSUNTOS CORP. - LOGÍSTICA FARMACÊUTICA 2",null,"HEMOBRÁS - FILIAL UNID. ADM. (RECIFE)","CELETISTA","40 HORAS SEMANAIS","CONCURSO PÚBLICO","2022-09-20"]
[240,"VIVIANE JUDITE SANTOS DA SILVA",{"$f":"\"***\"&MID(Planilha1!D374,4,9)&\"**\"","v":"***.689.634-**"},"TÉCNICO IND. E DE GESTÃO CORP. - TRIAGEM DO PLASMA",null,"HEMOBRÁS - FILIAL UNID. FABRIL (GOIANA)","CELETISTA","40 HORAS SEMANAIS","CONCURSO PÚBLICO","2014-03-24"]
[711,"WEDSON LEANDRO LIMA DOS SANTOS",{"$f":"\"***\"&MID(Planilha1!D375,4,9)&\"**\"","v":"***.910.544-**"},"APRENDIZ EM ASSISTENTE ADMINISTRATIVO",null,"HEMOBRÁS - FILIAL UNID. ADM. (RECIFE)","CELETISTA",null,"SELEÇÃO","2023-09-11"]
[613,"WILLIAMIS DO NASCIMENTO",{"$f":"\"***\"&MID(Planilha1!D376,4,9)&\"**\"","v":"***.534.604-**"},"ANALISTA IND. DE HEMOD. E BIOTEC. - CONTROLE QUALIDADE - 1",null,"HEMOBRÁS - FILIAL UNID. FABRIL (GOIANA)","CELETISTA","40 HORAS SEMANAIS","CONCURSO PÚBLICO","2023-01-25"]

{"sheet":"Planilha1","index":1,"n_rows":376,"n_cols":4,"rows_kept":376,"cut":false,"hidden":true,"merged":[]}
[]
[null,null,null,"054.989.144-74"]
[null,null,null,"069.611.456-98"]
[null,null,null,"012.285.904-94"]
[null,null,null,"720.291.451-49"]
[null,null,null,"070.391.204-61"]
[null,null,null,"060.299.915-40"]
[null,null,null,"083.413.827-17"]
[null,null,null,"877.911.102-53"]
[null,null,null,"931.274.132-20"]
[null,null,null,"098.131.194-62"]
[null,null,null,"090.500.684-48"]
[null,null,null,"649.507.511-15"]
[null,null,null,"054.556.724-60"]
[null,null,null,"698.651.594-49"]
[null,null,null,"047.777.484-99"]
[null,null,null,"071.078.854-13"]
[null,null,null,"665.567.592-87"]
[null,null,null,"013.372.654-11"]
[null,null,null,"777.101.263-91"]
[null,null,null,"076.267.174-22"]
[null,null,null,"397.957.638-81"]
[null,null,null,"120.677.004-05"]
[null,null,null,"110.292.704-06"]
[null,null,null,"056.915.384-03"]
[null,null,null,"039.353.515-00"]
[null,null,null,"102.800.844-98"]
[null,null,null,"062.890.734-60"]
[null,null,null,"427.646.371-87"]
[null,null,null,"061.516.824-83"]
[null,null,null,"261.904.191-00"]
[null,null,null,"042.747.451-55"]
[null,null,null,"227.280.898-09"]
[null,null,null,"118.854.004-11"]
[null,null,null,"010.073.984-93"]
[null,null,null,"289.915.428-16"]
[null,null,null,"864.880.074-91"]
[null,null,null,"138.337.154-72"]
[null,null,null,"093.003.404-09"]
[null,null,null,"007.527.105-24"]
[null,null,null," 075.910.424-75"]
[null,null,null,"030.918.814-82"]
[null,null,null,"063.202.903-07"]
[null,null,null,"872.877.303-91"]
[null,null,null,"476.987.214-34"]
[null,null,null,"103.332.594-59"]
[null,null,null,"055.850.894-47"]
[null,null,null,"053.358.054-47"]
[null,null,null,"117.202.824-98"]
[null,null,null,"107.089.404-47"]
[null,null,null,"052.177.901-48"]
[null,null,null,"037.826.504-09"]
[null,null,null,"071.927.377-39"]
[null,null,null,"008.839.854-46"]
[null,null,null,"103.359.634-55"]
[null,null,null,"029.726.754-01"]
[null,null,null,"011.679.004-05"]
[null,null,null,"789.500.315-15"]
[null,null,null,"083.931.264-44"]
[null,null,null,"076.792.914-46"]
[null,null,null,"086.627.534-77"]
[null,null,null,"093.192.874-57"]
[null,null,null,"077.224.444-82"]
[null,null,null,"089.816.946-13"]
[null,null,null,"075.506.056-37"]
[null,null,null,"050.144.541-27"]
[null,null,null,"035.827.803-17"]
[null,null,null,"071.055.315-33"]
[null,null,null,"484.982.626-15"]
[null,null,null,"884.047.737-34"]
[null,null,null,"074.037.904-64"]
[null,null,null,"054.099.944-00"]
[null,null,null,"057.330.564-10"]
[null,null,null,"084.094.414-46"]
[null,null,null,"008.954.289-46"]
[null,null,null,"073.174.644-90"]
[null,null,null,"042.733.004-19"]
[null,null,null,"049.870.484-00"]
[null,null,null,"032.631.244-71"]
[null,null,null,"950.075.984-53"]
[null,null,null,"079.162.774-84"]
[null,null,null,"012.576.421-97"]
[null,null,null,"032.136.914-96"]
[null,null,null,"052.457.804-45"]
[null,null,null,"008.403.404-19"]
[null,null,null,"071.404.304-46"]
[null,null,null,"648.094.471-20"]
[null,null,null,"124.330.117-10"]
[null,null,null,"026.280.844-73"]
[null,null,null,"935.770.364-00"]
[null,null,null,"079.348.294-18"]
[null,null,null,"071.653.534-37"]
[null,null,null,"087.024.944-42"]
[null,null,null,"882.209.584-72"]
[null,null,null,"099.341.284-03"]
[null,null,null,"074.522.634-56"]
[null,null,null,"076.442.084-45"]
[null,null,null,"039.961.034-09"]
[null,null,null,"085.411.634-66"]
[null,null,null,"111.414.454-17"]
[null,null,null,"052.749.434-89"]
[null,null,null,"081.753.957-37"]
[null,null,null,"082.089.544-03"]
[null,null,null,5815068470]
[null,null,null,"899.579.544-15"]
[null,null,null,"803.728.725-49"]
[null,null,null,"058.793.414-02"]
[null,null,null,"690.018.634-34"]
[null,null,null,"040.721.955-29"]
[null,null,null,"121.640.824-60"]
[null,null,null,"674.509.892-04"]
[null,null,null,"053.411.894-18"]
[null,null,null,"047.541.774-79"]
[null,null,null,"018.016.693-09"]
[null,null,null,"366.169.159-72"]
[null,null,null,"013.686.244-64"]
[null,null,null,"080.278.534-43"]
[null,null,null,"014.015.024-23"]
[null,null,null,"084.575.604-41"]
[null,null,null,"071.480.674-99"]
[null,null,null,"071.493.574-31"]
[null,null,null,"066.523.314-03"]
[null,null,null,"771.943.494-34"]
[null,null,null,"410.428.592-72"]
[null,null,null,"059.631.274-16"]
[null,null,null,"037.803.014-07"]
[null,null,null,"015.443.685-26"]
[null,null,null,"062.631.734-75"]
[null,null,null,"031.060.021-90"]
[null,null,null,"087.759.504-64"]
[null,null,null,"073.868.544-55"]
[null,null,null,"066.029.234-39"]
[null,null,null,"065.230.776-08"]
[null,null,null,"112.006.834-71"]
[null,null,null,"044.151.479-09"]
[null,null,null,"132.879.854-26"]
[null,null,null,"046.960.464-60"]
[null,null,null,"064.426.239-71"]
[null,null,null,"388.443.204-44"]
[null,null,null,"042.552.094-30"]
[null,null,null,"645.747.683-04"]
[null,null,null,"472.474.367-00"]
[null,null,null,"047.932.294-50"]
[null,null,null,"027.783.564-01"]
[null,null,null,"763.849.344-34"]
[null,null,null,"010.657.464-74"]
[null,null,null,"050.230.734-08"]
[null,null,null,"106.094.524-01"]
[null,null,null,"031.786.964-74"]
[null,null,null,"101.197.004-09"]
[null,null,null,"090.853.574-03"]
[null,null,null,"387.930.594-34"]
[null,null,null,"088.426.314-26"]
[null,null,null,"196.365.474-91"]
[null,null,null,"822.669.647-04"]
[null,null,null,"156.174.244-91"]
[null,null,null,"012.699.044-18"]
[null,null,null,"998.237.564-49"]
[null,null,null,"152.722.904-10"]
[null,null,null,"396.895.904-30"]
[null,null,null,"219.159.418-22"]
[null,null,null,"008.839.664-92"]
[null,null,null,"794.133.904-87"]
[null,null,null,"043.909.273-61"]
[null,null,null,"709.563.677-04"]
[null,null,null,"042.823.574-36"]
[null,null,null,"215.432.488-61"]
[null,null,null,"055.291.174-73"]
[null,null,null,"303.110.121-91"]
[null,null,null,"028.223.735-66"]
[null,null,null,"062.257.874-02"]
[null,null,null,"048.458.264-02"]
[null,null,null,"008.106.014-94"]
[null,null,null,"547.430.444-72"]
[null,null,null,"029.655.094-96"]
[null,null,null,"841.686.255-91"]
[null,null,null,"012.619.095-00"]
[null,null,null,"054.718.035-74"]
[null,null,null,"113.904.637-37"]
[null,null,null,"098.073.254-98"]
[null,null,null,"082.844.454-41"]
[null,null,null,"100.985.054-75"]
[null,null,null,"091.874.954-90"]
[null,null,null,"037.909.744-39"]
[null,null,null,"027.888.144-02"]
[null,null,null,"102.980.694-23"]
[null,null,null,"713.843.544-41"]
[null,null,null,"374.896.824-87"]
[null,null,null,"713.141.721-15"]
[null,null,null,"368.084.314-34"]
[null,null,null,"097.998.014-35"]
[null,null,null,"078.244.534-99"]
[null,null,null,"141.348.324-03"]
[null,null,null,"071.758.424-06"]
[null,null,null,"096.928.404-76"]
[null,null,null,"011.699.430-47"]
[null,null,null,"122.218.737-00"]
[null,null,null,"053.851.554-62"]
[null,null,null,"067.905.844-39"]
[null,null,null,"202.808.638-61"]
[null,null,null,"088.629.104-60"]
[null,null,null,"063.667.023-65"]
[null,null,null,"064.029.234-86"]
[null,null,null,"081.580.524-10"]
[null,null,null,"091.641.614-39"]
[null,null,null,"030.586.344-47"]
[null,null,null,4628811059]
[null,null,null,"056.359.454-30"]
[null,null,null,"033.313.103-79"]
[null,null,null,"034.422.364-79"]
[null,null,null,"021.685.661-27"]
[null,null,null,"041.124.093-54"]
[null,null,null,"836.746.591-15"]
[null,null,null,"064.923.334-46"]
[null,null,null,"305.045.541-15"]
[null,null,null,"004.432.513-47"]
[null,null,null,"073.249.294-78"]
[null,null,null,"061.314.803-70"]
[null,null,null,"060.562.544-10"]
[null,null,null,"086.815.094-03"]
[null,null,null,"009.111.634-17"]
[null,null,null,"055.665.464-12"]
[null,null,null,"029.267.544-50"]
[null,null,null,"099.885.594-45"]
[null,null,null,"008.412.335-43"]
[null,null,null,"080.611.344-89"]
[null,null,null,"103.414.924-50"]
[null,null,null,"076.819.314-14"]
[null,null,null,"047.734.954-48"]
[null,null,null,"997.140.273-49"]
[null,null,null,"094.195.934-10"]
[null,null,null,"***.108.444-**"]
[null,null,null,"067.011.744-77"]
[null,null,null,"066.709.424-51"]
[null,null,null,"071.809.684-39"]
[null,null,null,"076.959.744-04"]
[null,null,null,"064.232.504-99"]
[null,null,null,"059.284.614-88"]
[null,null,null,"063.550.664-54"]
[null,null,null,"522.323.796-04"]
[null,null,null,"640.600.713-15"]
[null,null,null,"097.479.814-24"]
[null,null,null,"049.726.774-81"]
[null,null,null,"059.208.534-17"]
[null,null,null,"318.455.334-53"]
[null,null,null,"714.336.894-64"]
[null,null,null,"057.376.104-38"]
[null,null,null,"705.528.984-06"]
[null,null,null,"354.265.864-20"]
[null,null,null,"036.384.294-23"]
[null,null,null,"044.441.104-65"]
[null,null,null,"119.116.184-66"]
[null,null,null,"057.096.624-88"]
[null,null,null,"079.457.044-50"]
[null,null,null,"085.593.894-31"]
[null,null,null,"060.654.384-80"]
[null,null,null,"017.159.975-65"]
[null,null,null,"621.165.504-59"]
[null,null,null,"043.126.834-76"]
[null,null,null,"823.221.474-00"]
[null,null,null,"009.906.020-52"]
[null,null,null,"080.844.014-40"]
[null,null,null,"891.959.571-20"]
[null,null,null,"093.165.024-03"]
[null,null,null,"062.988.364-54"]
[null,null,null,"081.064.234-41"]
[null,null,null,"067.663.804-03"]
[null,null,null,"093.402.984-97"]
[null,null,null,"012.909.704-75"]
[null,null,null,"012.848.714-36"]
[null,null,null,"708.055.394-68"]
[null,null,null,"051.804.474-29"]
[null,null,null,"141.877.224-08"]
[null,null,null,"113.656.134-02"]
[null,null,null,"377.939.774-91"]
[null,null,null,"048.044.764-07"]
[null,null,null,"081.614.334-02"]
[null,null,null,"020.451.743-52"]
[null,null,null,"064.275.094-70"]
[null,null,null,"600.063.723-33"]
[null,null,null,"065.327.794-66"]
[null,null,null,"092.708.874-64"]
[null,null,null,"020.477.515-94"]
[null,null,null,"052.517.034-06"]
[null,null,null,"113.662.414-79"]
[null,null,null,"372.116.684-15"]
[null,null,null,"932.588.288-49"]
[null,null,null,"005.779.592-47"]
[null,null,null,"045.467.347-78"]
[null,null,null,"004.082.003-32"]
[null,null,null,"082.294.724-24"]
[null,null,null,"037.638.603-71"]
[null,null,null,"122.712.194-69"]
[null,null,null,"411.025.170-20"]
[null,null,null,"054.950.974-75"]
[null,null,null,"112.705.014-10"]
[null,null,null,"014.772.111-36"]
[null,null,null,"107.418.114-05"]
[null,null,null,"107.553.004-08"]
[null,null,null,"073.015.054-26"]
[null,null,null,"792.923.801-68"]
[null,null,null,"108.046.124-80"]
[null,null,null,"013.006.744-07"]
[null,null,null,"042.700.514-00"]
[null,null,null,"882.209.584-72"]
[null,null,null,"062.164.134-06"]
[null,null,null,"054.252.816-92"]
[null,null,null,"063.252.684-07"]
[null,null,null,"054.067.911-92"]
[null,null,null,"081.780.474-97"]
[null,null,null,"046.319.073-47"]
[null,null,null,"110.951.837-45"]
[null,null,null,"027.918.105-10"]
[null,null,null,"064.045.824-65"]
[null,null,null,"101.349.074-69"]
[null,null,null,"046.135.314-89"]
[null,null,null,"053.904.174-29"]
[null,null,null,"113.077.234-97"]
[null,null,null,"051.629.874-76"]
[null,null,null,"130.552.394-66"]
[null,null,null,"084.438.738-09"]
[null,null,null,4974327496]
[null,null,null,"033.693.294-41"]
[null,null,null,"092.364.636-14"]
[null,null,null,"455.855.204-15"]
[null,null,null,"692.451.936-91"]
[null,null,null,"055.248.794-56"]
[null,null,null,"106.989.284-07"]
[null,null,null,"780.888.449-91"]
[null,null,null,"035.277.806-70"]
[null,null,null,"856.551.204-53"]
[null,null,null,"021.223.145-67"]
[null,null,null,"057.170.484-08"]
[null,null,null,"456.972.484-15"]
[null,null,null,"935.730.304-91"]
[null,null,null,"111.789.274-31"]
[null,null,null,"048.691.104-74"]
[null,null,null,"010.536.059-78"]
[null,null,null,"051.943.034-40"]
[null,null,null,"038.389.084-57"]
[null,null,null,"733.083.234-00"]
[null,null,null,"096.848.484-04"]
[null,null,null,"866.589.724-00"]
[null,null,null,"073.917.174-79"]
[null,null,null,"458.956.513-72"]
[null,null,null,"961.081.344-53"]
[null,null,null,"630.771.594-49"]
[null,null,null,"460.758.524-68"]
[null,null,null,"068.663.394-64"]
[null,null,null,"084.247.899-03"]
[null,null,null,"096.493.024-25"]
[null,null,null,"092.452.124-40"]
[null,null,null,"073.694.774-44"]
[null,null,null,"062.825.675-21"]
[null,null,null,"101.548.554-56"]
[null,null,null,"042.354.324-51"]
[null,null,null,"042.430.884-38"]
[null,null,null,"075.873.934-63"]
[null,null,null,"089.650.084-50"]
[null,null,null,"055.152.783-80"]
[null,null,null,"066.584.844-73"]
[null,null,null,"068.948.684-76"]
[null,null,null,"055.663.835-21"]
[null,null,null,"072.912.774-50"]
[null,null,null,"073.746.004-02"]
[null,null,null,"099.614.177-47"]
[null,null,null,"005.057.605-41"]
[null,null,null,"088.135.844-40"]
[null,null,null,"070.551.454-49"]
[null,null,null,"360.436.804-91"]
[null,null,null,"052.295.384-06"]
[null,null,null,"051.552.183-30"]
[null,null,null,"103.154.914-50"]
[null,null,null,"056.689.634-62"]
[null,null,null,"154.910.544-29"]
[null,null,null,"030.534.604-08"]